{"text_format":"1","workbook":"xlsx","n_sheets":5,"sheets":["Quiz","Musée","Diapo","Mouvements","Data"],"not_rendered":{"charts":0,"images":133,"macros":1,"external_links":0,"defined_names":8,"comments":1,"pivot_tables":0},"unopened":[],"bounds":{"document_bytes":16777216,"sheet_cells":100000,"rows_first":2000,"rows_last":500,"rows_between":2000,"halvings":0,"cell_chars":16384,"cell_head_chars":4096},"cells_cut":0,"cells_raw":0,"read":"whole","date_system":"1900"}

{"sheet":"Quiz","index":0,"n_rows":120,"n_cols":43,"rows_kept":120,"cut":false,"hidden":false,"merged":[[12,6,12,7],[117,2,117,3],[118,2,118,3],[114,4,114,8],[115,4,115,8],[116,4,116,8],[117,4,117,8],[118,4,118,8],[97,2,97,3],[114,2,114,3],[115,2,115,3],[116,2,116,3],[104,2,104,3],[100,2,100,3],[101,2,101,3],[102,2,102,3],[109,2,109,3],[83,2,83,3],[84,2,84,3],[85,2,85,3],[86,2,86,3],[87,2,87,3],[103,2,103,3],[105,2,105,3],[106,2,106,3],[107,2,107,3],[108,2,108,3],[80,2,80,3],[79,2,79,3],[79,4,79,8],[81,2,81,3],[82,2,82,3],[80,4,80,8],[81,4,81,8],[82,4,82,8],[17,26,19,26],[1,24,1,25],[79,26,104,26],[10,3,10,5],[3,2,3,6],[7,3,7,5],[9,3,9,5],[1,1,1,7],[4,6,6,6],[8,3,8,5],[13,1,13,2],[98,2,98,3],[99,2,99,3],[95,4,95,8],[96,4,96,8],[97,4,97,8],[100,4,100,8],[101,4,101,8],[102,4,102,8],[103,4,103,8],[104,4,104,8],[83,4,83,8],[84,4,84,8],[85,4,85,8],[86,4,86,8],[87,4,87,8],[98,4,98,8],[99,4,99,8],[88,2,88,3],[89,2,89,3],[90,2,90,3],[91,2,91,3],[92,2,92,3],[93,2,93,3],[94,2,94,3],[95,2,95,3],[88,4,88,8],[89,4,89,8],[90,4,90,8],[91,4,91,8],[92,4,92,8],[96,2,96,3],[1,0,2,0],[113,2,113,3],[110,4,110,8],[111,4,111,8],[112,4,112,8],[113,4,113,8],[93,4,93,8],[94,4,94,8],[110,2,110,3],[111,2,111,3],[112,2,112,3],[105,4,105,8],[106,4,106,8],[107,4,107,8],[108,4,108,8],[109,4,109,8]]}
[]
[100,{"$f":"IF(AF4<1,\"\",IF(AO6=2,\"À quel mouvement appartient cette œuvre ?\",\"Connaissez-vous l'auteur de cette œuvre ?\"))","v":""},null,null,null,null,null,null,null,null,null,null,null,null,null,null,null,null,null,null,null,null,null,null,null,null,{"$f":"IF(AF4=0,\"\",\"Dimensions de la peinture : \"&AL6&\" cm.\")","v":"Dimensions de la peinture : 0 x 0 cm."},"AB","AC","AD","AE","AF","AG"]
[null,null,null,null,null,null,null,null,null,null,null,null,null,null,null,null,null,null,null,null,null,null,null,null,null,null,"                 1 mètre                                2 mètres                                          "]
[null,null,null,null,null,null,null,null,null,null,null,null,null,null,null,null,null,null,null,null,null,null,null,null,null,null,null,null,null,null,"nbques pour test",-1,null,null,null,null,null,"Hauteur","Largeur"]
[null,null,null,null,null,null,{"$f":"IF(OR(AO6=1,AO6=3),IF(AF6=0,AF10,IF(AF8=\"Non\",\"D\",\"C\")),IF(AO5=0,AF10,IF(AO9=\"Non\",\"D\",\"C\")))","v":""},null,null,null,null,null,null,null,null,null,null,null,null,null,null,null,null,null,null,null,{"$f":"IF($AF$4>1,\"\",\"1. Cliquer sur 'Nouvelle série' pour débuter un QUIZ. Choisir Peintres , Mouvements ou QCM\")","v":"1. Cliquer sur 'Nouvelle série' pour débuter un QUIZ. Choisir Peintres , Mouvements ou QCM"},null,null,"Nombre tiré pour image du musée",null,48,"AF5 -de 1 à 40                                Boutons séries :",1,"Série :",1,"Case à cocher liste",{"$f":"VLOOKUP($AF$5,chrono,$AJ$8)","v":0},{"$f":"VLOOKUP($AF$5,chrono,$AJ$8+1)","v":0},"Renvoi du menu",0,"Texte pour réponse :",{"$f":"IF(OR(AO6=1,AO6=3),VLOOKUP(AF5,chrono,AJ7),VLOOKUP(AF5,chrono,2))","v":"     B     "}]
[null,null,null,null,null,null,null,null,null,null,null,null,null,null,null,null,null,null,null,null,null,null,null,null,null,null,{"$f":"IF($AF$4>1,\"\",\"2. Cliquer sur Tirage (Ctrl + q)   ou  clic sur une peinture pour afficher une nouvelle oeuvre.\")","v":"2. Cliquer sur Tirage (Ctrl + q)   ou  clic sur une peinture pour afficher une nouvelle oeuvre."},null,null,"Nombre renvoyé par le menu déroulant",null,0,"AF6  Renvoie 2 pour 1 de la liste",null,"déc image",{"$f":"IF(AJ5=1,0,IF(AJ5=2,7,14))","v":0},null,{"$f":"AL5&\" x \"&AM5","v":"0 x 0"},{"$f":"IF(OR(AL5>100,AM5>100),1,0)","v":0},"Bouton Peintre ou Style",3,"menu déroulant bis",{"$f":"IF(AO6=1,AF5,AO7)","v":0}]
[null,null,null,null,null,null,null,null,null,null,null,null,null,null,null,null,null,null,null,null,null,null,null,null,null,null,{"$f":"IF($AF$4>1,\"\",\"3. Choisir le peintre ou le mouvement dans le menu déroulant.\")","v":"3. Choisir le peintre ou le mouvement dans le menu déroulant."},null,null,"Correspondance menu",null,{"$f":"IF(AF6=0,0,VLOOKUP(AF6 -1,Alpha,2))","v":0},"AF7",null,"déc. Tab",{"$f":"IF(AJ5=1,3,IF(AJ5=2,6,9))","v":3},"Menu en 2 parties",null,{"$f":"IF(AL5=0,\"L\",IF(AM5>AL5/1.2,\"L\",\"H\"))","v":"L"},"La bonne réponse a est  : ",{"$f":"VLOOKUP($AF$5,chrono,14)","v":0},"La bonne réponse b est :",{"$f":"VLOOKUP($AF$5,chrono,15)","v":0}]
[null,null,null,{"$f":"IFERROR(IF(AQ6=0,\"\",IF(AQ9=\"OK\",AQ5,\"\")),\" \" )","v":""},null,null,null,null,null,null,null,null,null,null,null,null,null,null,null,null,null,null,null,null,null,null,{"$f":"IF($AF$4>1,\"\",\"    Le pouce vert en haut indique que le choix est JUSTE.\")","v":"    Le pouce vert en haut indique que le choix est JUSTE."},null,null,"Juste ou faux",null,{"$f":"IF(AO6=3,AF12,AF11)","v":"Non"},"AF8",null,"dec dim",{"$f":"IF(AJ5=1,16,IF(AJ5=2,18,20))","v":16},null,{"$f":"IF(AF5=45,1,IF(AF4=0,0,1))","v":1},"G","Nb points max.",{"$f":"IF(G14>AF4-1,(AF4-1)*1.5,AF4-1)","v":-3},"Masque, vrai-faux",false]
[null,null,null,{"$f":"IF(AF5=41,\"Réponse avec le menu ci-dessus\",IF(AF4>AJ10,\"La série est terminée !\",\"\"))","v":""},null,null,null,{"$f":"IF(AF9=FALSE,\"\",VLOOKUP(AF5,chrono,IF(OR(AO6=1,AO6=3),22,28)))","v":""},null,null,null,null,null,null,null,null,null,null,null,null,null,null,null,null,null,null,null,null,null,"Indice",null,null,"AF9","indice",null,null,"Tirage sans réponse :",null,null,"Juste au faux",{"$f":"IF(OR(AO5-1=AO7,  AO5-1=AQ7),\"OK\",\"non\")","v":"non"},"couleur de la main",{"$f":"IF(OR(AO6=1,AO6=3),AF8,AO9)","v":"Non"}]
[null,null,null,{"$f":"IF(AF7=0,\"\",IF(AF8=\"OK\",VLOOKUP(AF5,chrono,AJ7+1),\"\"))","v":""},null,null,null,null,null,null,null,null,null,null,null,null,null,null,null,null,null,null,null,null,null,null,{"$f":"IF($AF$4>1,\"\",\"L'indice donne une fourchette pour la première lettre du nom du peintre\")","v":"L'indice donne une fourchette pour la première lettre du nom du peintre"},null,null,null,"Souris :",{"$f":"IF(AF5>37,\"\",IF(AF6=0,8,\"\"))","v":""},null,null,"nb total de Q",40]
[null,null,null,{"$f":"IF(AF7=0,\"\",IF(AF8=\"OK\",VLOOKUP(AF5,chrono,12),\"\"))","v":""},null,null,null,null,null,null,null,null,null,null,null,null,null,null,null,null,null,null,null,null,null,null,{"$f":"IF($AF$4>1,\"\",\"ou du mouvement, mais ça vous coûtera un demi-point !\")","v":"ou du mouvement, mais ça vous coûtera un demi-point !"},null,null,"Juste ou faux Peintres",null,{"$f":"(IF($AF$7<>$AF$5,\"Non\",\"OK\"))","v":"Non"}]
[null,null,null,null,null,null,null,null,null,null,null,null,null,null,null,null,null,null,null,null,null,null,null,null,null,null,null,null,null,"Juste ou faux QCM",null,{"$f":"(IF(AN30=0,\"Non\",\"OK\"))","v":"Non"}]
[null,null,null,null,null,null,"Résultat final",null,null,null,null,null,null,null,null,null,null,null,null,null,null,null,null,null,null,null,{"$f":"IF($AF$4>1,\"\",\"Après le 'Tirage', le système attend une réponse. Si vous souhaitez passer les oeuvres\")","v":"Après le 'Tirage', le système attend une réponse. Si vous souhaitez passer les oeuvres"}]
[null,{"$f":"IF(AF4>AJ10,AJ10&\"/ \"&AJ10,AF4&\"/ \"&AJ10&\"\")","v":"-1/ 40"},null,null,null,null,0,{"$f":"IF(G14>1,\"points / \"&AO8,\"point\")","v":"point"},"t",null,null,null,null,null,null,null,null,null,null,null,null,null,null,null,null,null,{"$f":"IF($AF$4>1,\"\",\"sans avoir à  choisir avec le menu, cochez la case 'Réponse orale'.\")","v":"sans avoir à  choisir avec le menu, cochez la case 'Réponse orale'."},null,null,"Choix entre"]
[null,null,null,null,null,null,"(Ctl + q)"]
[null,null,null,null,null,null,null,null,null,null,null,null,null,null,null,null,null,null,null,null,null,null,null,null,null,null,{"$f":"IF($AF$4>1,\"\",\"Pendant ou à la fin d'une série la liste des tirages peut-être éditée avec la case\")","v":"Pendant ou à la fin d'une série la liste des tirages peut-être éditée avec la case"}]
[null,null,null,null,null,null,null,null,null,null,null,null,null,null,null,null,null,null,null,null,null,null,null,null,null,null,{"$f":"IF($AF$4>1,\"\",\"'Liste de la série en cours'. Les erreurs y sont signalées et les peintures revues une à une.\")","v":"'Liste de la série en cours'. Les erreurs y sont signalées et les peintures revues une à une."}]
[null,null,null,null,null,null,null,null,null,null,null,null,null,null,null,null,null,null,null,null,null,null,null,null,null,null,{"$f":"IF($AF$4>2,\"\",\"Si vous répondez à  Peintres et à  Mouvements dans le même tirage, cliquez sur la case 'Solution masquée' pour cacher les réponses !\")","v":"Si vous répondez à  Peintres et à  Mouvements dans le même tirage, cliquez sur la case 'Solution masquée' pour cacher les réponses !"}]
[]
["a"]
[]
[null,null,null,null,null,null,null,null,null,null,null,null,null,null,null,null,null,null,null,null,null,null,null,null,null,null,{"$f":"IF($AF$4>1,\"\",\"-> Pour rafraîchir votre culture, regardez la feuille des miniatures 'Musée' ou la feuille 'Diapo'.\" )","v":"-> Pour rafraîchir votre culture, regardez la feuille des miniatures 'Musée' ou la feuille 'Diapo'."},null,null,null,null,null,null,"Quiz ABCD"]
[null,null,null,null,null,null,null,null,null,null,null,null,null,null,null,null,null,null,null,null,null,null,null,null,null,null,{"$f":"IF($AF$4>1,\"\",\"    Trois œuvres célèbres de 36 peintres de 1510 à 1983 attendent votre visite.\")","v":"    Trois œuvres célèbres de 36 peintres de 1510 à 1983 attendent votre visite."},null,null,null,null,null,null,34,35,36,37,38,39,40,41]
[null,null,null,null,null,null,null,null,null,null,null,null,null,null,null,null,null,null,null,null,null,null,null,null,null,null,{"$f":"IF($AF$4>1,\"\",\"-> La feuille 'Mouvements' donne les clés de l'histoire de l'art.\")","v":"-> La feuille 'Mouvements' donne les clés de l'histoire de l'art."},null,null,null,null,null,null,"G","H","I","J/10","K","L","M"]
[null,null,null,null,null,null,null,null,null,null,null,null,null,null,null,null,null,null,null,null,null,null,null,null,null,null,null,null,null,null,null,null,null,25,"Tirage abcd",1,3,null,null,null,null,{"$f":"IF(AO25=\"\",\"\",AO25&\" - \")","v":""}]
[null,null,null,null,null,null,null,null,null,null,null,null,null,null,null,null,null,null,null,null,null,null,null,null,null,null,null,null,null,null,null,null,null,26,null,2,34,null,null,null,null,{"$f":"IF(AO26=\"\",\"\",AO26&\" - \")","v":""}]
[null,null,null,null,null,null,null,null,null,null,null,null,null,null,null,null,null,null,null,null,null,null,null,null,null,null,null,null,null,null,null,null,null,27,null,3,14,null,null,null,null,""]
[null,null,null,null,null,null,null,null,null,null,null,null,null,null,null,null,null,null,null,null,null,null,null,null,null,null,null,null,null,null,null,null,null,28,null,4,23,null,"rep ABCD",{"$f":"AF6","v":0},null,""]
["© Y. Péguiron - version 12.02.2024",null,null,null,null,null,null,null,null,null,null,null,null,null,null,null,null,null,null,null,null,null,null,null,null,null,null,null,null,null,null,null,null,29,null,5,0,null,"v ABCD",{"$f":"MATCH(5,AN31:AN35,0)","v":5},null,""]
[null,null,null,null,null,null,null,null,null,null,null,null,null,null,null,null,null,null,null,null,null,null,null,null,null,null,null,null,null,null,null,null,null,30,null,"rang",null,null,"Juste =1",{"$f":"IF(AN28=AN29,1,0)","v":0},null,""]
[null,null,null,null,null,null,null,null,null,null,null,null,null,null,null,null,null,null,null,null,null,null,null,null,null,null,null,null,null,null,null,null,null,31,"A",{"$f":"RANK(AK25,$AK$25:$AK$29)","v":4},{"$f":"VLOOKUP(AJ31,$AJ$25:$AK$29,2)","v":23},1,{"$f":"\"A - \"&VLOOKUP(AK31,Data!$A$3:$B$42,2)","v":"A - Jules-Joseph  Lefebvre"},{"$f":"AJ31","v":4},null,""]
[null,null,null,null,null,null,null,null,null,null,null,null,null,null,null,null,null,null,null,null,null,null,null,null,null,null,null,null,null,null,null,null,null,32,"B",{"$f":"RANK(AK26,$AK$25:$AK$29)","v":1},{"$f":"VLOOKUP(AJ32,$AJ$25:$AK$29,2)","v":3},2,{"$f":"\"B - \"&VLOOKUP(AK32,Data!$A$3:$B$42,2)","v":"B - Le  Titien"},{"$f":"AJ32","v":1},null,""]
[null,null,null,null,null,null,null,null,null,null,null,null,null,null,null,null,null,null,null,null,null,null,null,null,null,null,null,null,null,null,null,null,null,33,"C",3,14,3,{"$f":"\"C - \"&VLOOKUP(AK33,Data!$A$3:$B$42,2)","v":"C - Jean-Léon  Gérôme"},3,null,""]
[null,null,null,null,null,null,null,null,null,null,null,null,null,null,null,null,null,null,null,null,null,null,null,null,null,null,null,null,null,null,null,null,null,34,"D",2,34,4,{"$f":"\"D - \"&VLOOKUP(AK34,Data!$A$3:$B$42,2)","v":"D - Félix  Vallotton "},2,null,""]
[null,null,null,null,null,null,null,null,null,null,null,null,null,null,null,null,null,null,null,null,null,null,null,null,null,null,null,null,null,null,null,null,null,35,"E",5,0,5,{"$f":"\"E - \"&VLOOKUP(AK35,Data!$A$3:$B$42,2)","v":{"$error":"#N/A"}},{"$f":"AJ35","v":5},null,{"$f":"IF(AO35=\"\",\"\",AO35&\" - \")","v":""}]
[null,null,null,null,null,null,null,null,null,null,null,null,null,null,null,null,null,null,null,null,null,null,null,null,null,null,null,null,null,null,null,null,null,null,null,null,null,"lettre juste",{"$f":"VLOOKUP(AN29+30,AH31:AI35,2)","v":"E"},null,null,""]
[]
[]
[]
[]
[]
[]
[]
[]
[]
[]
[]
[]
[]
[]
[]
[]
[]
[]
[]
[]
[]
[]
[]
[]
[]
[]
[]
[]
[]
[]
[]
[]
[]
[]
[]
[]
[]
[]
[]
[null,null,null,null,null,null,null,null,null,null,null,null,null,"H","L"]
[null,null,null,null,null,null,null,null,null,null,null,null,{"$f":"N77&\"x\"&O77","v":"1x1"},{"$f":"IF(N79=0,1,VLOOKUP(M79,$B$80:$O$120,13))","v":1},{"$f":"IF(N79=0,1,VLOOKUP(M79,$B$80:$O$119,14))","v":1}]
[null,null,null,null,null,null,null,null,null,null,null,"?","déroul","image","décal"]
[null,"Liste des tirages de la dernière série :",null,null,null,null,null,null,null,"serie","decal","musee",1,{"$f":"VLOOKUP(M79,$B$80:$M$120,12)","v":0},{"$f":"VLOOKUP(M79,B80:L120,11)","v":14},"x","decdim",null,"Lettre","Lettre-"]
[0,1,{"$f":"IF(A80=0,\"\",T80&VLOOKUP(A80,chrono,2))","v":""},null,{"$f":"IF(A80=0,\"\",VLOOKUP(A80,chrono,IF($AO$6=1,K80,12))&\"   -  \"&VLOOKUP(A80,chrono,K80+1))","v":""},null,null,null,null,0,{"$f":"IF(J80=1,3,IF(J80=2,6,9))","v":9},{"$f":"IF(J80=1,0,IF(J80=2,7,14))","v":14},{"$f":"A80","v":0},{"$f":"VLOOKUP(A80,chrono,Q80)","v":1},{"$f":"VLOOKUP(A80,chrono,Q80+1)","v":1},"x",{"$f":"IF(J80=1,16,IF(J80=2,18,20))","v":20},null,null,{"$f":"IF(S80=\"\",\"\",S80&\" - \")","v":""}]
[0,2,"",null,"",null,null,null,null,0,{"$f":"IF(J81=1,3,IF(J81=2,6,9))","v":9},{"$f":"IF(J81=1,0,IF(J81=2,7,14))","v":14},{"$f":"A81","v":0},1,1,"x",{"$f":"IF(J81=1,16,IF(J81=2,18,20))","v":20},null,null,{"$f":"IF(S81=\"\",\"\",S81&\" - \")","v":""}]
[0,3,"",null,"",null,null,null,null,0,9,14,0,1,1,"x",20,null,null,""]
[0,4,"",null,"",null,null,null,null,0,9,14,0,1,1,"x",20,null,null,""]
[0,5,"",null,"",null,null,null,null,0,9,14,0,1,1,"x",20,null,null,""]
[0,6,"",null,"",null,null,null,null,0,9,14,0,1,1,"x",20,null,null,""]
[0,7,"",null,"",null,null,null,null,0,9,14,0,1,1,"x",20,null,null,""]
[0,8,"",null,"",null,null,null,null,0,9,14,0,1,1,"x",20,null,null,""]
[0,9,"",null,"",null,null,null,null,0,9,14,0,1,1,"x",20,null,null,""]
[0,10,"",null,"",null,null,null,null,0,9,14,0,1,1,"x",20,null,null,""]
[0,11,"",null,"",null,null,null,null,0,9,14,0,1,1,"x",20,null,null,""]
[0,12,"",null,"",null,null,null,null,0,9,14,0,1,1,"x",20,null,null,""]
[0,13,"",null,"",null,null,null,null,0,9,14,0,1,1,"x",20,null,null,""]
[0,14,"",null,"",null,null,null,null,0,9,14,0,1,1,"x",20,null,null,""]
[0,15,"",null,"",null,null,null,null,0,9,14,0,1,1,"x",20,null,null,""]
[0,16,"",null,"",null,null,null,null,0,9,14,0,1,1,"x",20,null,null,""]
[0,17,"",null,"",null,null,null,null,0,9,14,0,1,1,"x",20,null,null,""]
[0,18,"",null,"",null,null,null,null,0,9,14,0,1,1,"x",20,null,null,""]
[0,19,"",null,"",null,null,null,null,0,9,14,0,1,1,"x",20,null,null,""]
[0,20,"",null,"",null,null,null,null,0,9,14,0,1,1,"x",20,null,null,""]
[0,21,"",null,"",null,null,null,null,0,9,14,0,1,1,"x",20,null,null,""]
[0,22,"",null,"",null,null,null,null,0,9,14,0,1,1,"x",20,null,null,""]
[0,23,"",null,"",null,null,null,null,0,9,14,0,1,1,"x",20,null,null,""]
[0,24,"",null,"",null,null,null,null,0,9,14,0,1,1,"x",20,null,null,""]
[0,25,"",null,"",null,null,null,null,0,9,14,0,1,1,"x",20,null,null,""]
[0,26,"",null,"",null,null,null,null,0,9,14,0,1,1,"x",20,null,null,""]
[0,27,"",null,"",null,null,null,null,0,9,14,0,1,1,"x",20,null,null,"",null,null,null,null,null,null,{"$f":"IF(N79=0,\"\",VLOOKUP(N79,chrono,2))","v":""}]
[0,28,"",null,"",null,null,null,null,0,9,14,0,1,1,"x",20,null,null,"",null,null,null,null,null,null,{"$f":"IF(N79=0,\"\",VLOOKUP(N79,chrono,12))","v":""}]
[0,29,"",null,"",null,null,null,null,0,9,14,0,1,1,"x",20,null,null,"",null,null,null,null,null,null,"                                                                                                                                                                                                         "]
[0,30,"",null,"",null,null,null,null,0,9,14,0,1,1,"x",20,null,null,""]
[0,31,"",null,"",null,null,null,null,0,9,14,0,1,1,"x",20,null,null,""]
[0,32,"",null,"",null,null,null,null,0,9,14,0,1,1,"x",20,null,null,"",null,null,null,null,null,null,"                        Revoir la peinture no :"]
[0,33,"",null,"",null,null,null,null,0,9,14,0,1,1,"x",20,null,null,""]
[0,34,"",null,"",null,null,null,null,0,9,14,0,1,1,"x",20,null,null,"",null,null,null,null,null,null,"                1 mètre"]
[0,35,"",null,"",null,null,null,null,0,9,14,0,1,1,"x",20,null,null,""]
[0,36,"",null,{"$f":"IF(A115=0,\"\",VLOOKUP(A115,chrono,IF($AO$6=1,K115,12))&\"   -  \"&VLOOKUP(A115,chrono,K115+1))","v":""},null,null,null,null,0,9,{"$f":"IF(J115=1,0,IF(J115=2,7,14))","v":14},{"$f":"A115","v":0},1,1,"x",20,null,null,"",null,null,null,null,null,null,"<-- Dimension du tableau en cm"]
[0,37,{"$f":"IF(A116=0,\"\",VLOOKUP(A116,chrono,2))","v":""},null,"",null,null,null,null,0,9,14,0,1,1,"x",20,null,null,""]
[0,38,"",null,"",null,null,null,null,0,9,14,0,1,1,"x",20,null,null,""]
[0,39,"",null,"",null,null,null,null,0,9,14,0,1,1,"x",20,null,null,""]
[0,40,"",null,"",null,null,null,null,0,9,{"$f":"IF(J119=1,0,IF(J119=2,7,14))","v":14},{"$f":"A119","v":0},1,1,"x",20,null,null,""]
[null,41,null,null,null,null,null,null,null,null,null,null,null,{"$f":"VLOOKUP(A120,chrono,K120+11)","v":"   "},{"$f":"VLOOKUP(A120,chrono,K120+12)","v":"    "},"x",null,null,null,{"$f":"IF(S120=\"\",\"\",\" - \")","v":""}]

{"sheet":"Musée","index":1,"n_rows":197,"n_cols":52,"rows_kept":197,"cut":false,"hidden":false,"merged":[[2,0,5,0],[9,0,12,0],[16,0,19,0]]}
["Série",1,2,3,4,5,6,7,8,9,10,11,12,13,14,15,16,17,18,19,20,21,22,23,24,25,26,27,28,29,30,31,32,33,34,35,36,37,38,39,40,41,42,43,44,45,46,47,48,49,50,51]
[null,null,null,null,null,null,null,null,null,null,null,null,null,null,null,null,null,null,null,null,null,null,null,null,null,null,null,null,null,null,null,null,null,null,null,null,null,null,null,null,null,null,"Bravo !",null,null,"Bravo !",null,null," ","OK !   Nouvelle série en préparation…                                               Voir infos ci-contre --->"]
["A","Leonard de  Vinci","Le  Corrège","Le  Titien","Le  Tintoret","Pierre-Paul  Rubens","Nicolas  Poussin","Diego  Vélasquez","François  Boucher","Jean-Honoré  Fragonard","Francisco  Goya","Jean-Auguste-Dominique  Ingres","Jacques-Louis  David","Francesco  Hayez","Jean-Léon  Gérôme","Alexandre  Cabanel","Edouard  Manet","Jean-Baptiste-Camille  Corot","Gustave  Courbet","Henri  Gervex","William-Adolphe  Bouguereau","Edgard  Degas","Auguste  Renoir","Jules-Joseph  Lefebvre","Vincent  van Gogh","Paul  Cezanne","Edvard  Munch","Henri  Toulouse-Laurec","Karoly  Lotz","Anders  Zorn","Pablo  Picasso","Gustav  Klimt ","Henri  Matisse","Henri  Rousseau","Félix  Vallotton ","Amedeo  Modigliani","Alphonse  Mucha","Otto  Mueller","Balthasar  Balthus","Tom  Wessellmann","Léonor  Fini",null,null,null,null,null,null,null,"Henri Fantin-Latour"]
[null,1510,1530,1538,1551,1618,1624,1647,1751,1778,1790,1814,1817,1825,1848,1863,1863,1865,1866,1878,1879,1884,1903,1870,1887,1894,1894,1896,1901,1905,1906,1907,1907,1910,1913,1917,1922,1926,1983,1967,1975]
[null,"Léda et le Cygne","Danaé","Vénus d'Urbin","Mars et Vénus surpris par Vulcain","Le vol des  filles de Leucippus","Vénus au repos avec Cupidon","Vénus à son miroir","L'Obalisque blonde","Deux filles jouant avec un Chien","La Maja nue","La Grande Odalisque","L'Amour et Psyché","Marie-Madelaine","Intérieur grec","La naissance de Vénus","Olympia","Bacchante couchée au bord de Mer","La Femme au Perroquet","Rolla","La Naissance de Vénus","Après le bain","Les Grandes Baigneuses","La Vérité","Nu de dos féminin","Les Grandes baigneuses","Madonna ","La Toilette","Fille après le bain","Modèle dans le sauna","Les Demoiselles d'Avignon","Danae ","Nu bleu (Souvenir de Biskra)","Le rêve","La Blanche et la Noire","Nu couché","nu, jeune fille ","Deux baigneuses","Nu sur  guitare","Great American Nude","Couronnement Bienheureuse Féline"]
[null,"Galleriea Borghese - Rome","Galerie Borghèse - Rome","Musée de Offices  - Florence","Alte Pinakothek - Munich","Alte Pinakothek , Munich",null,"Natonal Gallery","Musée Wallraf Richartz - Cologne","Collection privée","Prado -Madrid","Musée du Louvre - Paris","Cleveland Museum of Art,","Galleria d'Arte Moderna - Milano","Grand Palais (Musée d’Orsay), Paris","MoMA","Musée d'Orsay - Paris","MoMA","MoMA","MBA Bordeaux","Musée d'Orsay - Paris","Ermitage","Musée d'Orsay","Musée d'Orsay - Paris","Collection privée","Museum of Art - Philadelphia","Musée Munch, Oslo,","Musée d'Orsay - Paris","Magyargaleria - Budapest","Finnish National Gallery, Helsinki","MoMA","Galerie Wurthle","Musée d'art de Baltimore","MoMA","Villa Flora, Winterthour (Suisse)","Hermitage","Collection privée","Das Brücke Museum, Berlin","Collection privée","Collection privée","Collection privée"]
[null,{"$f":"B21","v":"Renaissance"},"Maniérisme","Maniérisme","Maniérisme","Baroque","Classisisme","Baroque","Rococo","Rococo","Néo-Classicisme","Néo-Classicisme","Néo-Classicisme","Art académique","Art académique","Art académique","Réalisme","Réalisme","Réalisme","Art académique","Art académique","Impressionnisme","Impressionnisme","Art académique","Postimpressionnisme","Postimpressionnisme","Expressionnisme","Art nouveau","Art académique","Impressionnisme","Cubisme","Art nouveau","Fauvisme","Postimpressionnisme","Art nouveau","Fauvisme","Art nouveau","Expressionnisme","Art figuratif","Pop Art","Surréalisme"]
[null,{"$f":"B22","v":"   "},{"$f":"C22","v":"Renaissance"},"Renaissance","Renaissance","   ","   ","   ","Préromantisme","Préromantisme","Préromantisme","   ","   ","Romantisme","Réalisme","   ","Impressionnisme","Romantisme","Romantisme","Impressionnisme","Réalisme","   ","Réalisme","   ","Expressionnisme","Impressionnisme","Symbolisme","Postimpressionnisme","Romantisme","Art académique","Surréalisme","Symbolisme","Postimpressionnisme","Art moderne","Postimpressionnisme","Expressionnisme","   ","   ","Expressionnisme","Art moderne","   "]
[null,null,null,null,null,null,null,null,null,null,null,null,null,null,null,null,null,null,null,null,null,null,null,null,null,null,null,null,null,null,null,null,null,null,null,null,null,null,null,null,null,null,"Bravo !",null,null,"Bravo !"]
["B",{"$f":"B3","v":"Leonard de  Vinci"},{"$f":"C3","v":"Le  Corrège"},{"$f":"D3","v":"Le  Titien"},{"$f":"E3","v":"Le  Tintoret"},{"$f":"F3","v":"Pierre-Paul  Rubens"},{"$f":"G3","v":"Nicolas  Poussin"},"Diego  Vélasquez",{"$f":"I3","v":"François  Boucher"},"Jean-Honoré  Fragonard","Francisco  Goya","Jean-Auguste-Dominique  Ingres","Jacques-Louis  David","Francesco  Hayez",{"$f":"O3","v":"Jean-Léon  Gérôme"},"Alexandre  Cabanel","Edouard  Manet","Jean-Baptiste-Camille  Corot","Gustave  Courbet","Henri  Gervex","William-Adolphe  Bouguereau","Edgard  Degas","Auguste  Renoir","Jules-Joseph  Lefebvre","Vincent  van Gogh","Paul  Cezanne","Edvard  Munch","Henri  Toulouse-Laurec","Karoly  Lotz",{"$f":"AD3","v":"Anders  Zorn"},"Pablo  Picasso","Gustav  Klimt ","Henri  Matisse","Henri  Rousseau","Félix  Vallotton ","Amedeo  Modigliani","Alphonse  Mucha",{"$f":"AL3","v":"Otto  Mueller"},"Balthasar  Balthus","Tom  Wessellmann","Léonor  Fini",{"$f":"AP3","v":0},{"$f":"AQ3","v":0},{"$f":"AR3","v":0},0]
[null,1515,1527,1565,1570,1639,1625,1647,1742,1770,1812,1848,1824,1830,1884,1875,1860,1869,1862,1895,1885,1884,1880,1875,1887,1876,1907,1897,1890,1917,1956,1917,1935,1905,1911,1916,1898,1923,1979,1977,1972]
[null,"Mary Magdalena","L' Education de Cupidon","Vénus, Cupidon et une Perdrix","Danaé","Les trois Grâces","Nymphe et satyre","Vénus à son miroir","Diane sortant du Bain","Les trois Grâces","L'Espagne, le Temps et l'Histoire","Vénus Anadyomène","Mars désarmé par Vénus","Vénus jouant avec deux Colombes","Marché romain aux esclaves","Vénus victorieuse","La Nymphe surprise","Le Bain de Diane (La Fontaine)","Femme nue couchée","Parisina à sa toilette","Femme au coquillage","Femme se lavant dans un tub","Femme nue","Chloé","Femme nue étendue sur un lit","Trois Baigneuses","La Mort de Marat I","Femme rousse nue accroupie","Bacchante dormant I","Dans la  Barque de Werner","Femmes à la toilette","Adam et Ève","Nu Rose","Ève et le Serpent","Femme nue avec un bras relevé","Nu sur un divan (Almaïs)","Les 4 Arts - La Musique","Trois nus dans le paysage","Le Chat au Miroir","Carol Nude","Les Baigneuses"]
[null,"Collection privée","National Gallery - Londres","Musée de Offices  - Florence","Musée des Beaux-Art - Lyon","Musée du Prado - Madrid","Collection particulière (Jeff Koons)","Natonal Gallery","Musée du Louvre - Paris","Musée Fragonard - Grasse","Nationalmuseum - Stockholm","Musée du Louvres - Paris","Musées royaux des Beaux-Arts - Bruxelles","Museo Arte Moderna di Trento - Rovereto","Musée de l'Ermitage, Saint-Pétersbourg","Musée Fabre - Montpellier","Musée national Beaux-Arts - Buenos Aires","Museo Thyssen - Madrid","Grand Palais - Paris","Museo Nacional Bellas Artes - Buenos Aires","Collection privée","Collection privée","Murée Rodin - Paris","Hôtel Young and Jackson - Melbourne","Fondation Barnes - Philadelphy","Petit Palais - Paris","Musée Munch - Oslo","Museum of Art - San Diego","Magyargaleria - Budapest","Collection privée","Grand-Palais - Paris","Gelerie Belvedere - Vienne","Museum ef Art - Baltimore","Kunsthalle - Hambourg","Collection privée","Collection Paul Wurzburger - Cleveland","Mucha Museum - Prague","Das Brücke Museum, Berlin","Collection privée","Collection privée - New York","Weinstein Gallery - San Fransisco"]
[]
[]
[null,null,null,null,null,null,null,null,null,null,null,null,null,null,null,null,null,null,null,null,null,null,null,null,null,null,null,null,null,null,null,null,null,null,null,null,null,null,null,null,null,null,"Bravo !",null,null,"Bravo !"]
["C",{"$f":"B3","v":"Leonard de  Vinci"},"Le  Corrège","Le  Titien","Le  Tintoret","Pierre-Paul  Rubens","Nicolas  Poussin","Diego  Vélasquez","François  Boucher","Jean-Honoré  Fragonard","Francisco  Goya","Jean-Auguste-Dominique  Ingres","Jacques-Louis  David","Francesco  Hayez","Jean-Léon  Gérôme","Alexandre  Cabanel","Edouard  Manet","Jean-Baptiste-Camille  Corot",{"$f":"S10","v":"Gustave  Courbet"},"Henri  Gervex",{"$f":"U3","v":"William-Adolphe  Bouguereau"},"Edgard  Degas","Auguste  Renoir","Jules-Joseph  Lefebvre","Vincent  van Gogh","Paul  Cezanne","Edvard  Munch","Henri  Toulouse-Laurec","Karoly  Lotz",{"$f":"AD3","v":"Anders  Zorn"},"Pablo  Picasso","Gustav  Klimt ","Henri  Matisse","Henri  Rousseau","Félix  Vallotton ","Amedeo  Modigliani","Alphonse  Mucha",{"$f":"AL3","v":"Otto  Mueller"},"Balthasar  Balthus","Tom  Wessellmann","Léonor  Fini"]
[null,1525,1520,1550,1557,1628,1626,1645,1751,1770,1805,1856,1795,1812,1890,1860,1863,1873,1861,1907,1896,1884,1893,1882,1887,1877,1902,1897,1919,1890,1964,1907,1908,1909,1907,1912,1896,1925,1948,1980,1975]
[null,"Léda et ses enfants","Vénus, Satyre et Cupidon","Vénus Anadyomène","Suzanne et les Vieillards","Adam et Eve","Vénus surprise par des satyres","Philip IV d'après Rubens","Vénus consultant l'Amour","L'instant désiré","Assaut des bandits","La Source","Psyché abandonnée","Rinaldo et Armida","La Naissance de Venus","Nymphe enlevée par un faune","Déjeuner sur l'Herbe","Vénus à son bain","Femme aux Bas blancs","La Naissance de Vénus","La vague","Femme s'essuyant après le Bain","Baigneuse se coiffant","Ondine","Femme nue allongée","La Tentation de Saint Antoine","Jeune fille sur un drap rouge","Femme debout devant un miroir","Bacchante dormant II","Dans la chambre","Nu couché à la fleur","Serpent d'eau II","Baigneuses avec une tortue","Le Charme","Baigneuse de face","Nu assis","L'Eté","Deux Jeunes Filles","La Chambre","Nu avec lampe","Nu couché"]
[null,"Staatliche Museen - Kassel","Musée du Louvre - Paris","National Gallery of Scotland - Edimbourg","Musée de l'Histoire de l'art - Vienne","Musée du Prado - Madrid","Kunsthaus, Zurich","Gallerie des Offices - Florence","Natioanl Gallery of Art - Washington","Collection Georges Ortiz - Suisse","Collection Marqueses de la Romana, Madrid","Musée d'Orsay - Paris","Collection privée","Gallerie dell'Accademia - Venise","Collection particulière","Palais des Beaux-Arts - Lille","Musée d'Orsay","Collection privée","Fondation Barnes - Merion","Musée des Beaux-Arts (Petit Palais) - Paris","Collection privée","Musée de l'Ermitage - Saint-Petersbourg","National Gallery of Art - Washington","Musée Beaux-Arts - Budapest","Musée Kröller-Müller - Otterlo ","Musée d'Orsay - Paris","Staatsgalerie - Stuttgart","The Met - New York","Magyargaleria - Budapest","Collecion privée","Collection privée","Collection privée","City Art Museum - St. Louis","Museum Charlotte Zander - Bönnigheim","Villa Flora - Winterthur","Courtauld Gallery - Londres","Mucha Museum - Prague","Staatliche Museen, Berlin","Smithsonian Institution - Washington","Almine Rech Gallery - Londres","Edward James Foundation - Londres"]
[null,"Renaissance","Maniérisme","Maniérisme","Maniérisme","Baroque","Classisisme","Baroque","Rococo","Rococo","Néo-Classicisme","Néo-Classicisme","Néo-Classicisme","Art académique","Art académique","Art académique","Réalisme","Réalisme","Réalisme","Art académique","Art académique","Impressionnisme","Impressionnisme","Art académique","Postimpressionnisme","Postimpressionnisme","Expressionnisme","Art nouveau","Art académique","Impressionnisme","Cubisme","Art nouveau","Fauvisme","Postimpressionnisme","Art nouveau","Fauvisme","Art nouveau","Expressionnisme","Art figuratif","Pop Art","Surréalisme"]
[null,"   ","Renaissance","Renaissance","Renaissance","   ","   ","   ","Préromantisme","Préromantisme","Préromantisme","   ","   ","Romantisme","Réalisme","   ","Impressionnisme","Romantisme","Romantisme","Impressionnisme","Réalisme","   ","Réalisme","   ","Expressionnisme","Impressionnisme","Symbolisme","Postimpressionnisme","Romantisme","Art académique","Surréalisme","Symbolisme","Postimpressionnisme","Art moderne","Postimpressionnisme","Expressionnisme","   ","   ","Expressionnisme","Art moderne","   "]
[]
[null,1,2,3,4,5,null,6,null,7,8,9,10,11,null,12,13,14,15,16,17,18,null,19,20,21,22,23,24,null,25,26,27,28,29,30,31,null,32,33,34,36,39,40]
[null,"Liste alphabétique","Pour aller au peintre : cliquer sur le no à gauche du peintre, puis sur son nom - Retour  à la liste avec Ctrl+l"]
[38," BALTHUS  Balthasar ","Nu sur  guitare","Le Chat au Miroir","La Chambre"]
[8," BOUCHER  François ","L'Obalisque blonde","Diane sortant du Bain","Vénus consultant l'Amour"]
[20," BOUGUEREAU  William-Adolphe ","La Naissance de Vénus","Femme au coquillage","La vague"]
[15," CABANEL  Alexandre ","La naissance de Vénus","Vénus victorieuse","Nymphe enlevée par un faune"]
[25," CEZANNE  Paul ","Les Grandes baigneuses","Trois Baigneuses","La Tentation de Saint Antoine"]
[17," COROT  Jean-Baptiste-Camille ","Bacchante couchée au bord de Mer","Le Bain de Diane (La Fontaine)","Vénus à son bain"]
[2," CORRÈGE  Le ","Danaé","L' Education de Cupidon","Vénus, Satyre et Cupidon"]
[18," COURBET  Gustave ","La Femme au Perroquet","Femme nue couchée","Femme aux Bas blancs"]
[12," DAVID  Jacques-Louis ","L'Amour et Psyché","Mars désarmé par Vénus","Psyché abandonnée"]
[21," DEGAS  Edgard ","Après le bain","Femme se lavant dans un tub","Femme s'essuyant après le Bain"]
[40," FINI  Léonor ","Couronnement Bienheureuse Féline","Les Baigneuses","Nu couché"]
[9," FRAGONARD  Jean-Honoré ","Deux filles jouant avec un Chien","Les trois Grâces","L'instant désiré"]
[14," GÉRÔME  Jean-Léon ","Intérieur grec","Marché romain aux esclaves","La Naissance de Venus"]
[19," GERVEX  Henri ","Rolla","Parisina à sa toilette","La Naissance de Vénus"]
[10," GOYA  Francisco ","La Maja nue","L'Espagne, le Temps et l'Histoire","Assaut des Bandits "]
[13," HAYEZ  Francesco ","Marie-Madelaine","Vénus jouant avec deux Colombes","Rinaldo et Armida"]
[11," INGRES  Jean-Auguste-Dominique ","La Grande Odalisque","Vénus Anadyomène","La Source"]
[31," KLIMT   Gustav ","Danae ","Adam et Ève","Serpent d'eau II"]
[23," LEFEBVRE  Jules-Joseph ","La Vérité","Chloé","Ondine"]
[28," LOTZ  Karoly ","Fille après le bain","Bacchante dormant I","Bacchante dormant II"]
[16," MANET  Edouard ","Olympia","La Nymphe surprise","Déjeuner sur l'Herbe"]
[32," MATISSE  Henri ","Nu bleu (Souvenir de Biskra)","Nu Rose","Baigneuses avec une tortue"]
[35," MODIGLIANI  Amedeo ","Nu couché","Nu sur un divan (Almaïs)","Nu assis"]
[36," MUCHA  Alphonse ","nu, jeune fille ","Les 4 Arts - La Musique","L'Eté"]
[37," MUELLER  Otto ","Deux baigneuses 100/149","Trois nus dans le paysage","Deux Jeunes Filles"]
[26," MUNCH  Edvard ","Madonna ","La Mort de Marat I","Jeune fille sur un drap rouge"]
[30," PICASSO  Pablo ","Les Demoiselles d'Avignon","Femmes à la toilette","Nu couché à la fleur"]
[6," POUSSIN  Nicolas ","Vénus au repos avec Cupidon","Nymphe et satyre","Vénus surprise par des satyres"]
[22," RENOIR  Auguste ","Les Grandes Baigneuses","Femme nue","Baigneuse se coiffant"]
[33," ROUSSEAU  Henri ","Le rêve","Ève et le Serpent","Le Charme"]
[5," RUBENS  Pierre_Paul ","Le vol des  filles de Leucippus","Les trois Grâces","Adam et Eve"]
[4," TINTORET  Le ","Mars et Vénus surpris par Vulcain","Danaé","Suzanne et les Vieillards"]
[3," TITIEN  Le ","Vénus d'Urbin","Vénus, Cupidon et une Perdrix","Vénus Anadyomène"]
[27," TOULOUSE-LAUREC  Henri ","La Toilette","Femme rousse nue accroupie","Femme debout devant un miroir"]
[34," VALLOTTON   Félix ","La Blanche et la Noire","Femme nue avec un bras relevé","Baigneuse de face"]
[24," VAN GOGH  Vincent ","Nu de dos féminin","Femme nue étendue sur un lit","Femme nue allongée"]
[7," VÉLASQUEZ  Diego ","Vénus à son miroir","Vénus à son miroir","Philip IV d'après Rubens"]
[1," de VINCI  Leonard ","Léda et le Cygne","Mary Magdalena","Léda et ses enfants"]
[39," WESSELLMANN  Tom ","Great American Nude","Carol Nude","Nu avec lampe"]
[29," ZORN  Anders ","Modèle dans le sauna","Dans la  Barque de Werner","Dans la chambre"]
[]
[]
[]
[]
[]
[]
[]
[]
[]
[]
[]
["Classement par date",null,null,null,"Mouvements*","Premier mouvement","Second mouvement"]
[1510,"de  VINCI","Léda et le Cygne"]
[1515,"de  VINCI","Mary Magdalena",null,{"$f":"Data!B3","v":"Leonard de  Vinci"},{"$f":"Data!L3","v":"Renaissance"},{"$f":"Data!M3","v":"   "}]
[1520," CORRÈGE","Vénus, Satyre et Cupidon",null,{"$f":"Data!B4","v":"Le  Corrège"},{"$f":"Data!L4","v":"Maniérisme"},{"$f":"Data!M4","v":"Renaissance"}]
[1525,"de  VINCI","Léda et ses enfants",null,{"$f":"Data!B5","v":"Le  Titien"},{"$f":"Data!L5","v":"Maniérisme"},{"$f":"Data!M5","v":"Renaissance"}]
[1527," CORRÈGE","L' Education de Cupidon",null,{"$f":"Data!B6","v":"Le  Tintoret"},{"$f":"Data!L6","v":"Maniérisme"},{"$f":"Data!M6","v":"Renaissance"}]
[1530," CORRÈGE","Danaé",null,{"$f":"Data!B7","v":"Pierre-Paul  Rubens"},{"$f":"Data!L7","v":"Baroque"},{"$f":"Data!M7","v":"   "}]
[1538," TITIEN","Vénus d'Urbin",null,{"$f":"Data!B8","v":"Nicolas  Poussin"},{"$f":"Data!L8","v":"Classisisme"},{"$f":"Data!M8","v":"   "}]
[1550," TITIEN","Vénus Anadyomène",null,{"$f":"Data!B9","v":"Diego  Vélasquez"},{"$f":"Data!L9","v":"Baroque"},{"$f":"Data!M9","v":"   "}]
[1551," TINTORET","Mars et Vénus surpris par Vulcain",null,{"$f":"Data!B10","v":"François  Boucher"},{"$f":"Data!L10","v":"Rococo"},{"$f":"Data!M10","v":"Préromantisme"}]
[1557," TINTORET","Suzanne et les Vieillards",null,{"$f":"Data!B11","v":"Jean-Honoré  Fragonard"},{"$f":"Data!L11","v":"Rococo"},{"$f":"Data!M11","v":"Préromantisme"}]
[1565," TITIEN","Vénus, Cupidon et une Perdrix",null,{"$f":"Data!B12","v":"Francisco  Goya"},{"$f":"Data!L12","v":"Néo-Classicisme"},{"$f":"Data!M12","v":"Préromantisme"}]
[1570," TINTORET","Danaé",null,{"$f":"Data!B13","v":"Jean-Auguste-Dominique  Ingres"},{"$f":"Data!L13","v":"Néo-Classicisme"},{"$f":"Data!M13","v":"   "}]
[1618," RUBENS","Le vol des  filles de Leucippus",null,{"$f":"Data!B14","v":"Jacques-Louis  David"},{"$f":"Data!L14","v":"Néo-Classicisme"},{"$f":"Data!M14","v":"   "}]
[1624," POUSSIN","Vénus au repos avec Cupidon",null,{"$f":"Data!B15","v":"Francesco  Hayez"},{"$f":"Data!L15","v":"Art académique"},{"$f":"Data!M15","v":"Romantisme"}]
[1625," POUSSIN","Nymphe et satyre",null,{"$f":"Data!B16","v":"Jean-Léon  Gérôme"},{"$f":"Data!L16","v":"Art académique"},{"$f":"Data!M16","v":"Réalisme"}]
[1626," POUSSIN","Vénus surprise par des satyres",null,{"$f":"Data!B17","v":"Alexandre  Cabanel"},{"$f":"Data!L17","v":"Art académique"},{"$f":"Data!M17","v":"   "}]
[1628," RUBENS","Adam et Eve",null,{"$f":"Data!B18","v":"Edouard  Manet"},{"$f":"Data!L18","v":"Réalisme"},{"$f":"Data!M18","v":"Impressionnisme"}]
[1639," RUBENS","Les trois Grâces",null,{"$f":"Data!B19","v":"Jean-Baptiste-Camille  Corot"},{"$f":"Data!L19","v":"Réalisme"},{"$f":"Data!M19","v":"Romantisme"}]
[1645," VÉLASQUEZ","Philip IV d'après Rubens",null,{"$f":"Data!B20","v":"Gustave  Courbet"},{"$f":"Data!L20","v":"Réalisme"},{"$f":"Data!M20","v":"Romantisme"}]
[1647," VÉLASQUEZ","Vénus à son miroir",null,{"$f":"Data!B21","v":"Henri  Gervex"},{"$f":"Data!L21","v":"Art académique"},{"$f":"Data!M21","v":"Impressionnisme"}]
[1647," VÉLASQUEZ","Vénus à son miroir",null,{"$f":"Data!B22","v":"William-Adolphe  Bouguereau"},{"$f":"Data!L22","v":"Art académique"},{"$f":"Data!M22","v":"Réalisme"}]
[1742," BOUCHER","Diane sortant du Bain",null,{"$f":"Data!B23","v":"Edgard  Degas"},{"$f":"Data!L23","v":"Impressionnisme"},{"$f":"Data!M23","v":"   "}]
[1751," BOUCHER","L'Obalisque blonde",null,{"$f":"Data!B24","v":"Auguste  Renoir"},{"$f":"Data!L24","v":"Impressionnisme"},{"$f":"Data!M24","v":"Réalisme"}]
[1751," BOUCHER","Vénus consultant l'Amour",null,{"$f":"Data!B25","v":"Jules-Joseph  Lefebvre"},{"$f":"Data!L25","v":"Art académique"},{"$f":"Data!M25","v":"   "}]
[1770," FRAGONARD","Les trois Grâces",null,{"$f":"Data!B26","v":"Vincent  van Gogh"},{"$f":"Data!L26","v":"Postimpressionnisme"},{"$f":"Data!M26","v":"Expressionnisme"}]
[1770," FRAGONARD","L'instant désiré",null,{"$f":"Data!B27","v":"Paul  Cezanne"},{"$f":"Data!L27","v":"Postimpressionnisme"},{"$f":"Data!M27","v":"Impressionnisme"}]
[1778," FRAGONARD","Deux filles jouant avec un Chien",null,{"$f":"Data!B28","v":"Edvard  Munch"},{"$f":"Data!L28","v":"Expressionnisme"},{"$f":"Data!M28","v":"Symbolisme"}]
[1790," GOYA","La Maja nue",null,{"$f":"Data!B29","v":"Henri  Toulouse-Laurec"},{"$f":"Data!L29","v":"Art nouveau"},{"$f":"Data!M29","v":"Postimpressionnisme"}]
[1795," DAVID","Psyché abandonnée",null,{"$f":"Data!B30","v":"Karoly  Lotz"},{"$f":"Data!L30","v":"Art académique"},{"$f":"Data!M30","v":"Romantisme"}]
[1805," GOYA","Assaut des Bandits",null,{"$f":"Data!B31","v":"Anders  Zorn"},{"$f":"Data!L31","v":"Impressionnisme"},{"$f":"Data!M31","v":"Art académique"}]
[1812," GOYA","L'Espagne, le Temps et l'Histoire",null,{"$f":"Data!B32","v":"Pablo  Picasso"},{"$f":"Data!L32","v":"Cubisme"},{"$f":"Data!M32","v":"Surréalisme"}]
[1812," HAYEZ","Rinaldo et Armida",null,{"$f":"Data!B33","v":"Gustav  Klimt "},{"$f":"Data!L33","v":"Art nouveau"},{"$f":"Data!M33","v":"Symbolisme"}]
[1814," INGRES","La Grande Odalisque",null,{"$f":"Data!B34","v":"Henri  Matisse"},{"$f":"Data!L34","v":"Fauvisme"},{"$f":"Data!M34","v":"Postimpressionnisme"}]
[1817," DAVID","L'Amour et Psyché",null,{"$f":"Data!B35","v":"Henri  Rousseau"},{"$f":"Data!L35","v":"Postimpressionnisme"},{"$f":"Data!M35","v":"Art moderne"}]
[1824," DAVID","Mars désarmé par Vénus",null,{"$f":"Data!B36","v":"Félix  Vallotton "},{"$f":"Data!L36","v":"Art nouveau"},{"$f":"Data!M36","v":"Postimpressionnisme"}]
[1825," HAYEZ","Marie-Madelaine",null,{"$f":"Data!B37","v":"Amedeo  Modigliani"},{"$f":"Data!L37","v":"Fauvisme"},{"$f":"Data!M37","v":"Expressionnisme"}]
[1830," HAYEZ","Vénus jouant avec deux Colombes",null,{"$f":"Data!B38","v":"Alphonse  Mucha"},{"$f":"Data!L38","v":"Art nouveau"},{"$f":"Data!M38","v":"   "}]
[1848," GÉRÔME","Intérieur grec",null,{"$f":"Data!B39","v":"Otto  Mueller"},{"$f":"Data!L39","v":"Expressionnisme"},{"$f":"Data!M39","v":"   "}]
[1848," INGRES","Vénus Anadyomène",null,{"$f":"Data!B40","v":"Balthasar  Balthus"},{"$f":"Data!L40","v":"Art figuratif"},{"$f":"Data!M40","v":"Expressionnisme"}]
[1856," INGRES","La Source",null,{"$f":"Data!B41","v":"Tom  Wessellmann"},{"$f":"Data!L41","v":"Pop Art"},{"$f":"Data!M41","v":"Art moderne"}]
[1860," MANET","La Nymphe surprise",null,{"$f":"Data!B42","v":"Léonor  Fini"},{"$f":"Data!L42","v":"Surréalisme"},{"$f":"Data!M42","v":"   "}]
[1860," CABANEL","Nymphe enlevée par un faune"]
[1861," COURBET","Femme aux Bas blancs",null,"*admis comme réponse dans le QUIZ"]
[1862," COURBET","Femme nue couchée"]
[1863," CABANEL","La naissance de Vénus"]
[1863," MANET","Olympia"]
[1863," MANET","Déjeuner sur l'Herbe"]
[1865," COROT","Bacchante couchée au bord de Mer"]
[1866," COURBET","La Femme au Perroquet"]
[1869," COROT","Le Bain de Diane (La Fontaine)"]
[1870," LEFEBVRE","La Vérité"]
[1873," COROT","Vénus à son bain"]
[1875," CABANEL","Vénus victorieuse"]
[1875," LEFEBVRE","Chloé"]
[1876," CEZANNE","Trois Baigneuses"]
[1877," CEZANNE","La Tentation de Saint Antoine"]
[1878," GERVEX","Rolla"]
[1879," BOUGUEREAU","La Naissance de Vénus"]
[1880," RENOIR","Femme nue"]
[1882," LEFEBVRE","Ondine"]
[1884," DEGAS","Après le bain"]
[1884," GÉRÔME","Marché romain aux esclaves"]
[1884," DEGAS","Femme se lavant dans un tub"]
[1884," DEGAS","Femme s'essuyant après le Bain"]
[1885," BOUGUEREAU","Femme au coquillage"]
[1887," VAN GOGH","Nu de dos féminin"]
[1887," VAN GOGH","Femme nue étendue sur un lit"]
[1887," VAN GOGH","Femme nue allongée"]
[1890," LOTZ","Bacchante dormant I"]
[1890," GÉRÔME","La Naissance de Venus"]
[1890," ZORN","Dans la chambre"]
[1893," RENOIR","Baigneuse se coiffant"]
[1894," CEZANNE","Les Grandes baigneuses"]
[1894," MUNCH","Madonna "]
[1895," GERVEX","Parisina à sa toilette"]
[1896," TOULOUSE-LAUREC","La Toilette"]
[1896," BOUGUEREAU","La vague"]
[1896," MUCHA","L'Eté"]
[1897," TOULOUSE-LAUREC","Femme rousse nue accroupie"]
[1897," TOULOUSE-LAUREC","Femme debout devant un miroir"]
[1898," MUCHA","Les 4 Arts - La Musique"]
[1901," LOTZ","Fille après le bain"]
[1902," MUNCH","Jeune fille sur un drap rouge"]
[1903," RENOIR","Les Grandes Baigneuses"]
[1905," ZORN","Modèle dans le sauna"]
[1905," ROUSSEAU","Ève et le Serpent"]
[1906," PICASSO","Les Demoiselles d'Avignon"]
[1907," KLIMT ","Danae "]
[1907," MATISSE","Nu bleu (Souvenir de Biskra)"]
[1907," MUNCH","La Mort de Marat I"]
[1907," GERVEX","La Naissance de Vénus"]
[1907," KLIMT ","Serpent d'eau II"]
[1907," VALLOTTON ","Baigneuse de face"]
[1908," MATISSE","Baigneuses avec une tortue"]
[1909," ROUSSEAU","Le Charme"]
[1910," ROUSSEAU","Le rêve"]
[1911," VALLOTTON ","Femme nue avec un bras relevé"]
[1912," MODIGLIANI","Nu assis"]
[1913," VALLOTTON ","La Blanche et la Noire"]
[1916," MODIGLIANI","Nu sur un divan (Almaïs)"]
[1917," MODIGLIANI","Nu couché"]
[1917," ZORN","Dans la  Barque de Werner"]
[1917," KLIMT ","Adam et Ève"]
[1919," LOTZ","Bacchante dormant II"]
[1922," MUCHA","nu, jeune fille "]
[1923," MUELLER","Trois nus dans le paysage"]
[1925," MUELLER","Deux Jeunes Filles"]
[1926," MUELLER","Deux baigneuses 100/149"]
[1935," MATISSE","Nu Rose"]
[1948," BALTHUS","La Chambre"]
[1956," PICASSO","Femmes à la toilette"]
[1964," PICASSO","Nu couché à la fleur"]
[1967," WESSELLMANN","Great American Nude"]
[1972," FINI","Les Baigneuses"]
[1975," FINI","Couronnement Bienheureuse Féline"]
[1975," FINI","Nu couché"]
[1977," WESSELLMANN","Carol Nude"]
[1979," BALTHUS","Le Chat au Miroir"]
[1980," WESSELLMANN","Nu avec lampe"]
[1983," BALTHUS","Nu sur  guitare"]

{"sheet":"Diapo","index":2,"n_rows":42,"n_cols":6,"rows_kept":42,"cut":false,"hidden":false,"merged":[]}
[170,{"$f":" IF(E4=44,\"\",\"<----            \"&VLOOKUP(E4,chrono,E9)&\" cm            ---->\")","v":"<----            86 cm            ---->"}]
[{"$f":"VLOOKUP(E4,chrono,2)","v":"Leonard de  Vinci"},null,{"$f":"VLOOKUP(E4,chrono,E8+1)&\"             \"&VLOOKUP(E4,chrono,E8)","v":"Léda et le Cygne             1510"}]
[null,{"$f":"IF(E4=0,\"\",VLOOKUP(E4,chrono,E8+2))","v":"Galleriea Borghese - Rome"},null,null,null,1]
[null,{"$f":"IF(E11=TRUE,D12,\"\")","v":""},null,"menu :",1,2]
[null,null,null,null,null,3]
[null,null,null,"Série : ",1,4]
[null,null,null,"décal V",{"$f":"IF(E6=1,0,IF(E6=2,7,14))","v":0},5]
[null,null,null,"decalo",{"$f":"IF(E6=1,3,IF(E6=2,6,9))","v":3},6]
[null,null,null,"decalarg",{"$f":"IF(E6=1,17,IF(E6=2,19,21))","v":17},7]
[null,null,null,null,true,8]
[null,null,null,null,false,9]
[null,null,null,{"$f":"IF(VLOOKUP(E4,chrono,13)=\"   \",VLOOKUP(E4,chrono,12),VLOOKUP(E4,chrono,12)&\"    -    \"&VLOOKUP(E4,chrono,13))","v":"Renaissance"},null,10]
[null,null,null,null,null,11]
[null,null,null,null,null,12]
[null,null,null,null,null,13]
[null,null,null,null,null,14]
[null,null,null,null,null,15]
[null,null,null,null,null,16]
[null,null,null,null,null,17]
[null,null,null,null,null,18]
[null,null,null,null,null,19]
[null,null,null,null,null,20]
[null,null,null,null,null,21]
[null,null,null,null,null,22]
[null,null,null,null,null,23]
[null,null,null,null,null,24]
[null,null,null,null,null,25]
[null,null,null,null,null,26]
[null,null,null,null,null,27]
[null,null,null,null,null,28]
[null,null,null,null,null,29]
[null,null,null,null,null,30]
[null,null,null,null,null,31]
[null,null,null,null,null,32]
[null,null,null,null,null,33]
[null,null,null,null,null,34]
[null,null,null,null,null,35]
[null,null,null,null,null,36]
[null,null,null,null,null,37]
[null,null,null,null,null,38]
[null,null,null,null,null,39]
[null,null,null,null,null,40]

{"sheet":"Mouvements","index":3,"n_rows":68,"n_cols":31,"rows_kept":68,"cut":false,"hidden":false,"merged":[[0,28,2,28],[0,29,2,29],[0,13,2,13],[0,23,2,23],[0,24,2,24],[0,25,2,25],[0,26,2,26],[0,27,2,27],[0,9,2,9],[66,1,66,4],[67,1,67,4],[0,10,2,10],[0,11,2,11],[56,1,56,4],[57,1,57,4],[58,1,58,4],[64,1,64,4],[65,1,65,4],[63,1,63,4],[59,1,59,4],[60,1,60,4],[62,1,62,4],[61,1,61,4],[50,1,50,4],[0,12,2,12],[0,22,2,22],[0,14,2,14],[0,15,2,15],[0,16,2,16],[0,17,2,17],[0,18,2,18],[0,19,2,19],[0,20,2,20],[0,21,2,21],[51,1,51,4],[53,1,53,4],[54,1,54,4],[55,1,55,4],[52,1,52,4],[0,0,0,2],[26,5,30,5],[47,1,47,4],[48,1,48,4],[49,1,49,4]]}
["   Mouvements en peinture",null,null,null,null,null,null,null,null,"Renaissance","Maniérisme","Baroque","Rococo","Classisime","Néo-classisime","Romantisme","Art académique","Réalisme","Impressionnisme","Postimpressionnisme","Cubisme","Fauvisme","Expressionnisme","Symbolisme","Art nouveau","Surràalisme","Art nouveau","Art moderne","Art figuratif","Pop Art"]
[]
[]
[null,null,null,null,null,null,null,null,{"$f":"Data!AA3","v":"DE  VINCI  Leonard "}]
[null,null,null,null,null,null,null,null,{"$f":"Data!AA4","v":" CORRÈGE  Le "}]
[null,null,null,null,null,null,null,null,{"$f":"Data!AA5","v":" TITIEN  Le "}]
[1400,"Fin de la guerre de 100 ans","Gothique",null,null,null,null,null,{"$f":"Data!AA6","v":" TINTORET  Le "}]
[1425,null,null,"Renaissance",null,null,null,null,{"$f":"Data!AA7","v":" RUBENS  Pierre-Paul "}]
[1450,null,null,null,null,null,null,null,{"$f":"Data!AA8","v":" POUSSIN  Nicolas "}]
[1475,"1492 Découverte de l'Amérique",null,null,null,null,null,null,{"$f":"Data!AA9","v":" VÉLASQUEZ  Diego "}]
[1500,null,null,null,null,null,null,null,{"$f":"Data!AA10","v":" BOUCHER  François "}]
[1525,"1515-1547 François 1er","Maniérisme",null,null,null,null,null,{"$f":"Data!AA11","v":" FRAGONARD  Jean-Honoré "}," "]
[1550,null,null,null,null,null,null,null,{"$f":"Data!AA12","v":" GOYA  Francisco "}," "]
[1575,null,null,null,null,null,null,null,{"$f":"Data!AA13","v":" INGRES  Jean-Auguste-Dominique "}," "]
[1600,"1589-1610 Henri IV","Baroque",null,null,null,null,null,{"$f":"Data!AA14","v":" DAVID  Jacques-Louis "}," "]
[1625,null,null,null,null,null,null,null,{"$f":"Data!AA15","v":" HAYEZ  Francesco "}," "]
[1650,null,null,null,null,null,null,null,{"$f":"Data!AA16","v":" GÉRÔME  Jean-Léon "}," "]
[1675,"1643 - 1715 Louis XIV",null,null,null,null,null,null,{"$f":"Data!AA17","v":" CABANEL  Alexandre "}," "]
[1700,null,null,"Classicisme",null,null,null,null,{"$f":"Data!AA18","v":" MANET  Edouard "}," "]
[1725,null,null,null,"Rococo",null,null,null,{"$f":"Data!AA19","v":" COROT  Jean-Baptiste-Camille "}," "]
[1750,null,null,null,"Préromantisme",null,null,null,{"$f":"Data!AA20","v":" COURBET  Gustave "}," "]
[1775,null,"Romantisme","Néo-classicisme",null,null,null,null,{"$f":"Data!AA21","v":" GERVEX  Henri "}," "]
[1800,null,null,null,null,null,null,null,{"$f":"Data!AA22","v":" BOUGUEREAU  William-Adolphe "}," "]
[1825,"1839 Invention de la photo",null,null,null,null,null,null,{"$f":"Data!AA23","v":" DEGAS  Edgard "}," "]
[1850,null,null,"Réalisme",null,null,null,null,{"$f":"Data!AA24","v":" RENOIR  Auguste "}," "]
[1875,"1894 Eclairage électrique",null,"Impressionnisme",null,null,null,null,{"$f":"Data!AA25","v":" LEFEBVRE  Jules-Joseph "}," "]
[1900,null,"Symbolisme",null,"Art nouveau","Modernisme","Expressionnisme",null,{"$f":"Data!AA26","v":" VAN GOGH  Vincent "}," "]
[1925,null,"Surréalisme","Postimpressionnisme","Art déco.",null,"Cubisme ",null,{"$f":"Data!AA27","v":" CEZANNE  Paul "}," "]
[1950,"1960 Début informatique",null,null,"Art brut",null,"Fauvisme",null,{"$f":"Data!AA28","v":" MUNCH  Edvard "}," "]
[1975,null,null,null,"Art moderne",null,"Hyperréalisme",null,{"$f":"Data!AA29","v":" TOULOUSE-LAUREC  Henri "}," "]
[2000,null,null,null,"Art abstrait",null,"Pop Art",null,{"$f":"Data!AA30","v":" LOTZ  Karoly "}," "]
[null,null,null,null,null,null,null,null,{"$f":"Data!AA31","v":" ZORN  Anders "}," "]
[null,null,null,null,null,null,null,null,{"$f":"Data!AA32","v":" PICASSO  Pablo "}," "]
[null,null,null,null,null,null,null,null,{"$f":"Data!AA33","v":" KLIMT   Gustav "}," "]
[null,null,null,null,null,null,null,null,{"$f":"Data!AA34","v":" MATISSE  Henri "}," "]
[null,null,null,null,null,null,null,null,{"$f":"Data!AA35","v":" ROUSSEAU  Henri "}," ",null,null,null,null,null,null,null,null,null,null,null,null,null,null,null,null,null,null,null,null,"   "]
[null,null,null,null,null,null,null,null,{"$f":"Data!AA36","v":" VALLOTTON   Félix "}," "]
[null,null,null,null,null,null,null,null,{"$f":"Data!AA37","v":" MODIGLIANI  Amedeo "}," "]
[null,null,null,null,null,null,null,null,{"$f":"Data!AA38","v":" MUCHA  Alphonse "}," "]
[null,null,null,null,null,null,null,null,{"$f":"Data!AA39","v":" MUELLER  Otto "}," "]
[null,null,null,null,null,null,null,null,{"$f":"Data!AA40","v":" BALTHUS  Balthasar "}," "]
[null,null,null,null,null,null,null,null,{"$f":"Data!AA41","v":" WESSELLMANN  Tom "}," "]
[null,null,null,null,null,null,null,null,{"$f":"Data!AA42","v":" FINI  Léonor "}," "]
[]
[null,null,null,null,null,null,null,null,"Fond blanc = admis comme réponse dans ce Quiz"]
["Dictionnaire des mouvements"]
["http://www.histoiredelart.net/"]
[null,"La peinture de la Renaissance (mouvement de peinture qui s'est développé au XVIe siècle) se caractérise par toute une série de nouveautés telles que l'apparition du nu, de la notion de paysage, la perspective les effets de lumières et d'ombres notamment.",null,null,null,null,null,null,null," "]
[null,"Le maniérisme (mouvement de peinture qui s'est développé vers 1510) se trouve dans les poses à équilibre précaire, les formes allongées, un éclairage théâtral, les arrangements exagérés et les perspectives dissonantes.",null,null,null,null,null,null,null," "]
[null,"Le baroque (mouvement de peinture qui évolue entre 1600 et 1720) est l'art de la mise en scène par l’éblouissement des sens. Sur les peintures baroques, on observe l’exubérance des courbes, les jeux de regards, et les draperies, qui expriment la grandeur du pouvoir royal. ",null,null,null,null,null,null,null," "]
[null,"Le classicisme caractérise l'école de peinture française du XVIIe siècle. En réponse aux extravagances du baroque, le mouvement s'inspire des maîtres de la renaissance classique et devient un langage pictural au service de la monarchie absolue.",null,null,null,null,null,null,null," "]
[null,"Le rococo (courant de peinture qui se développe entre 1730 et 1789) met tous ses moyens au service de la joie, de la grâce et de la fantaisie, en opposition à l'art baroque.  Il disparut en 1789 au profit du néo-classicisme.",null,null,null,null,null,null,null," "]
[null,"Le néo-classicisme émerge vers 1750 dans l'Europe des Lumières et réagit aux extravagances du rococo par un retour au modèle antique et au beau idéal. Fantaisies et imagination sont abolies au profit de la sévérité, de la vertu et du patriotisme."]
[null,"Le romantisme (mouvement de peinture qui apparut à la fin du XVIIIe siècle) laisse une grande part à l’imaginaire, aux rêves, à la sensibilité et l’originalité des artistes.",null,null,null,null,null,null,null," "]
[null,"Le réalisme en peinture (courant de peinture du XIXe siècle) privilégie la représentation exacte, tels qu'ils sont, de la nature, des hommes et de la société.",null,null,null,null,null,null,null," "]
[null,"L'impressionnisme (courant de peinture du milieu du XIXe siècle) est né sous l'impulsion de jeunes artistes qui font du paysage leur thème principal et s’attachent à rendre compte de la moindre variation lumineuse grâce à la couleur.",null,null,null,null,null,null,null," "]
[null,"Les peintres du symbolisme (mouvement de peinture né en 1866) s’adressent à l’imaginaire, non au regard. Le sujet de prédilection est la femme qui incarne l’idéal de beauté dans tous les domaines.",null,null,null,null,null,null,null," "]
[null,"Le postimpressionnisme (mouvement entre 1885 et 1905) regroupe des courants artistiques qui, à partir de 1885, divergent de l'impressionnisme ou s'opposent à lui : néo-impressionnisme, synthétisme, symbolisme, nabis... Le post impressionnisme désigne donc une époque brève dans l'histoire de l'art, une vingtaine d'années, qui va voir un foisonnement d'idées et l'émergence de jeunes talents appelés à révolutionner la peinture. Cette période brouillonne, mais fertile finira par déboucher sur l'art abstrait.",null,null,null,null,null,null,null," "]
[null,"L'art nouveau (fin XIXe et début XXe siècle)  s'appuie sur l'esthétique des lignes courbes et se caractérise par l’emploi de lignes sinueuses, de courbes et de formes organiques.",null,null,null,null,null,null,null," "]
[null,"Le cubisme (mouvement de peinture qui s'est développé dans la première moitié du XXe siècle) est le fruit des peintres Pablo Picasso et Georges Braque qui ont introduit la fragmentation dans leurs oeuvres d'art."]
[null,"Le fauvisme (courant de peinture du début du XXe siècle) s’attache particulièrement au travail de la couleur. Les œuvres sont facilement reconnaissables par l’emploi sur de larges surfaces de couleurs aux teintes éclatantes.",null,null,null,null,null,null,null," "]
[null,"L’expressionnisme (mouvement de peinture qui apparut au début du XXe siècle) est la projection d’une vision personnelle qui tend à déformer la réalité pour inspirer au spectateur une réaction émotionnelle.",null,null,null,null,null,null,null," "]
[null,"Les caractéristiques du surréalisme (mouvement de la première moitié du XXe siècle) sont  principalement la surprise et la juxtaposition inattendue qui s'explique par une expression philosophique."]
[null,"Le constructivisme est une tendance artistique apparue en Russie vers 1913. Il se concentre sur la composition géométrique rigoureuse et par conséquent non figuratif. Le caractère constructiviste repose sur le fait de créer une composition au moyen d’éléments géométriques simples."]
[null,"Le pointillisme est un mouvement artistique de la peinture et une technique picturale qui utilise de petites touches de couleur rondes ou carrées juxtaposées plutôt que des mélanges de pâtes colorées. La peinture par points était connue depuis le xvie siècle au moins."]
[null,"La notion de modernisme (courant de peinture qui s'étend de 1907 aux années 1960) recouvre un ensemble de mouvements culturels ayant animé les sociétés occidentales de la fin du XIXe siècle et du XXe siècle, dans la peinture et dans d'autres domaines artistiques."]
[null,"Le dadaïsme ou Dada est un mouvement de peinture (qui s'est développé dans les années 1910 - 1920) qui tente d’abolir le concept du beau en mettant en avant un monde vide de sens. Tout peut devenir art si l’artiste le décide, utilisant la révolte ou la dérision. "]
[null,"Art brut est le terme par lequel le peintre Jean Dubuffet désigne les productions de personnes exemptes de culture artistique. Art qui comprend à la fois l'art des fous et celui de marginaux de toutes sortes : prisonniers, reclus, mystiques, anarchistes ou révoltés."]

{"sheet":"Data","index":4,"n_rows":97,"n_cols":41,"rows_kept":97,"cut":false,"hidden":true,"merged":[[47,13,47,21],[46,23,46,26],[47,22,47,26]]}
[1,"chrono - Matrice de Musée",null,4,5,6,7,8,9,10,11,12,13,14,15,16,17,18,19,20,21,22,23,24,25,26,27,28,28,29,30,31,32,33,34,35,36,37,38]
[0,"   ","   ","   ","   ","   ","   ","   ","   ","   ","   ","    ","   ","Mouvement",null,1,1,1,1,1,1]
[1,{"$f":"TRANSPOSE(Musée!B3:AR6)","v":"Leonard de  Vinci"},1510,"Léda et le Cygne","Galleriea Borghese - Rome",{"$f":"TRANSPOSE(Musée!B11:AR13)","v":1515},"Mary Magdalena","Collection privée",{"$f":"TRANSPOSE(Musée!B18:AR22)","v":1525},"Léda et ses enfants","Staatliche Museen - Kassel","Renaissance","   ",{"$f":"VLOOKUP(L3,$J$50:$K$71,2)","v":16},{"$f":"IF(M3=\"   \",20,VLOOKUP(M3,$J$50:$K$71,2))","v":20},112,86,58,45,128,106,"T, V, W",{"$f":"B3","v":"Leonard de  Vinci"},{"$f":"UPPER(RIGHT(W3,LEN(W3)-SEARCH(\" \",W3,1)))","v":"DE  VINCI"},{"$f":"LEFT(W3,FIND(\" \",W3))","v":"Leonard "},1,{"$f":"X3&\"  \"&Y3","v":"DE  VINCI  Leonard "},{"$f":"VLOOKUP(N3,$I$50:$L$70,4)","v":"R, S, T"}]
[2,"Le  Corrège",1530,"Danaé","Galerie Borghèse - Rome",1527,"L' Education de Cupidon","National Gallery - Londres",1520,"Vénus, Satyre et Cupidon","Musée du Louvre - Paris","Maniérisme","Renaissance",10,16,161,193,155,92,188,125,"A, B, C",{"$f":"B4","v":"Le  Corrège"},{"$f":"UPPER(RIGHT(W4,LEN(W4)-SEARCH(\" \",W4,1)))","v":" CORRÈGE"},{"$f":"LEFT(W4,FIND(\" \",W4))","v":"Le "},2,{"$f":"X4&\"  \"&Y4","v":" CORRÈGE  Le "},{"$f":"VLOOKUP(N4,$I$50:$L$70,4)","v":"M, N, P"}]
[3,"Le  Titien",1538,"Vénus d'Urbin","Musée de Offices  - Florence",1565,"Vénus, Cupidon et une Perdrix","Musée de Offices  - Florence",1550,"Vénus Anadyomène","National Gallery of Scotland - Edimbourg","Maniérisme","Renaissance",10,16,119,165,148,217,76,58,"T, V, W","Le  Titien"," TITIEN","Le ",3," TITIEN  Le ","M, N, P",null,null,null,null,null,null,null,null,null,null,null,null,0]
[4,"Le  Tintoret",1551,"Mars et Vénus surpris par Vulcain","Alte Pinakothek - Munich",1570,"Danaé","Musée des Beaux-Art - Lyon",1557,"Suzanne et les Vieillards","Musée de l'Histoire de l'art - Vienne","Maniérisme","Renaissance",10,16,135,198,142,182,146,194,"T, V, W","Le  Tintoret"," TINTORET","Le ",4," TINTORET  Le ","M, N, P",null,null,null,0]
[5,"Pierre-Paul  Rubens",1618,"Le vol des  filles de Leucippus","Alte Pinakothek , Munich",1639,"Les trois Grâces","Musée du Prado - Madrid",1628,"Adam et Eve","Musée du Prado - Madrid","Baroque","   ",5,20,224,210,221,181,238,185,"P, Q, R","Pierre-Paul  Rubens"," RUBENS","Pierre-Paul ",5," RUBENS  Pierre-Paul ","B, C, E"]
[6,"Nicolas  Poussin",1624,"Vénus au repos avec Cupidon",0,1625,"Nymphe et satyre","Collection particulière (Jeff Koons)",1626,"Vénus surprise par des satyres","Kunsthaus, Zurich","Classisisme","   ",5,20,71,96,52,67,77,100,"P, Q, R","Nicolas  Poussin"," POUSSIN","Nicolas ",6," POUSSIN  Nicolas ","B, C, E"]
[7,"Diego  Vélasquez",1647,"Vénus à son miroir","Natonal Gallery",1647,"Vénus à son miroir","Natonal Gallery",1645,"Philip IV d'après Rubens","Gallerie des Offices - Florence","Baroque","   ",5,20,122,177,122,177,337,263,"T, V, W","Diego  Vélasquez"," VÉLASQUEZ","Diego ",7," VÉLASQUEZ  Diego ","B, C, E"]
[8,"François  Boucher",1751,"L'Obalisque blonde","Musée Wallraf Richartz - Cologne",1742,"Diane sortant du Bain","Musée du Louvre - Paris",1751,"Vénus consultant l'Amour","Natioanl Gallery of Art - Washington","Rococo","Préromantisme",17,14,60,74,57,73,107,85,"A, B, C","François  Boucher"," BOUCHER","François ",8," BOUCHER  François ","R, S, T"]
[9,"Jean-Honoré  Fragonard",1778,"Deux filles jouant avec un Chien","Collection privée",1770,"Les trois Grâces","Musée Fragonard - Grasse",1770,"L'instant désiré","Collection Georges Ortiz - Suisse","Rococo","Préromantisme",17,14,74,60,90,134,73,91,"D, E, F","Jean-Honoré  Fragonard"," FRAGONARD","Jean-Honoré ",9," FRAGONARD  Jean-Honoré ","R, S, T"]
[10,"Francisco  Goya",1790,"La Maja nue","Prado -Madrid",1812,"L'Espagne, le Temps et l'Histoire","Nationalmuseum - Stockholm",1805,"Assaut des bandits","Collection Marqueses de la Romana, Madrid","Néo-Classicisme","Préromantisme",11,14,97,190,294,244,42,32,"G, H, I","Francisco  Goya"," GOYA","Francisco ",10," GOYA  Francisco ","M, N, P"]
[11,"Jean-Auguste-Dominique  Ingres",1814,"La Grande Odalisque","Musée du Louvre - Paris",1848,"Vénus Anadyomène","Musée du Louvres - Paris",1856,"La Source","Musée d'Orsay - Paris","Néo-Classicisme","   ",11,20,91,162,32,20,163,80,"G, H, I","Jean-Auguste-Dominique  Ingres"," INGRES","Jean-Auguste-Dominique ",11," INGRES  Jean-Auguste-Dominique ","M, N, P"]
[12,"Jacques-Louis  David",1817,"L'Amour et Psyché","Cleveland Museum of Art,",1824,"Mars désarmé par Vénus","Musées royaux des Beaux-Arts - Bruxelles",1795,"Psyché abandonnée","Collection privée","Néo-Classicisme","   ",11,20,184,242,308,265,80,63,"D, E, F","Jacques-Louis  David"," DAVID","Jacques-Louis ",12," DAVID  Jacques-Louis ","M, N, P"]
[13,"Francesco  Hayez",1825,"Marie-Madelaine","Galleria d'Arte Moderna - Milano",1830,"Vénus jouant avec deux Colombes","Museo Arte Moderna di Trento - Rovereto",1812,"Rinaldo et Armida","Gallerie dell'Accademia - Venise","Art académique","Romantisme",1,18,118,151,183,137,198,295,"G, H, I","Francesco  Hayez"," HAYEZ","Francesco ",13," HAYEZ  Francesco ","Art  ?"]
[14,"Jean-Léon  Gérôme",1848,"Intérieur grec","Grand Palais (Musée d’Orsay), Paris",1884,"Marché romain aux esclaves","Musée de l'Ermitage, Saint-Pétersbourg",1890,"La Naissance de Venus","Collection particulière","Art académique","Réalisme",1,15,16,21,92,74,130,80,"G, H, I","Jean-Léon  Gérôme"," GÉRÔME","Jean-Léon ",14," GÉRÔME  Jean-Léon ","Art  ?"]
[15,"Alexandre  Cabanel",1863,"La naissance de Vénus","MoMA",1875,"Vénus victorieuse","Musée Fabre - Montpellier",1860,"Nymphe enlevée par un faune","Palais des Beaux-Arts - Lille","Art académique","   ",1,20,106,183,80,50,240,140,"A, B, C","Alexandre  Cabanel"," CABANEL","Alexandre ",15," CABANEL  Alexandre ","Art  ?"]
[16,"Edouard  Manet",1863,"Olympia","Musée d'Orsay - Paris",1860,"La Nymphe surprise","Musée national Beaux-Arts - Buenos Aires",1863,"Déjeuner sur l'Herbe","Musée d'Orsay","Réalisme","Impressionnisme",15,9,131,191,146,114,208,264,"K, L, M","Edouard  Manet"," MANET","Edouard ",16," MANET  Edouard ","R, S, T"]
[17,"Jean-Baptiste-Camille  Corot",1865,"Bacchante couchée au bord de Mer","MoMA",1869,"Le Bain de Diane (La Fontaine)","Museo Thyssen - Madrid",1873,"Vénus à son bain","Collection privée","Réalisme","Romantisme",15,18,39,60,72,41,116,90,"A, B, C","Jean-Baptiste-Camille  Corot"," COROT","Jean-Baptiste-Camille ",17," COROT  Jean-Baptiste-Camille ","R, S, T"]
[18,"Gustave  Courbet",1866,"La Femme au Perroquet","MoMA",1862,"Femme nue couchée","Grand Palais - Paris",1861,"Femme aux Bas blancs","Fondation Barnes - Merion","Réalisme","Romantisme",15,18,130,196,75,97,65,81,"A, B, C","Gustave  Courbet"," COURBET","Gustave ",18," COURBET  Gustave ","R, S, T"]
[19,"Henri  Gervex",1878,"Rolla","MBA Bordeaux",1895,"Parisina à sa toilette","Museo Nacional Bellas Artes - Buenos Aires",1907,"La Naissance de Vénus","Musée des Beaux-Arts (Petit Palais) - Paris","Art académique","Impressionnisme",1,9,178,220,66,36,160,200,"G, H, I","Henri  Gervex"," GERVEX","Henri ",19," GERVEX  Henri ","Art  ?"]
[20,"William-Adolphe  Bouguereau",1879,"La Naissance de Vénus","Musée d'Orsay - Paris",1885,"Femme au coquillage","Collection privée",1896,"La vague","Collection privée","Art académique","Réalisme",1,15,300,218,131,87,121,161,"A, B, C","William-Adolphe  Bouguereau"," BOUGUEREAU","William-Adolphe ",20," BOUGUEREAU  William-Adolphe ","Art  ?"]
[21,"Edgard  Degas",1884,"Après le bain","Ermitage",1884,"Femme se lavant dans un tub","Collection privée",1884,"Femme s'essuyant après le Bain","Musée de l'Ermitage - Saint-Petersbourg","Impressionnisme","   ",9,20,50,50,76,86,50,52,"D, E, F","Edgard  Degas"," DEGAS","Edgard ",21," DEGAS  Edgard ","E, F , I"]
[22,"Auguste  Renoir",1903,"Les Grandes Baigneuses","Musée d'Orsay",1880,"Femme nue","Murée Rodin - Paris",1893,"Baigneuse se coiffant","National Gallery of Art - Washington","Impressionnisme","Réalisme",9,15,112,166,81,65,93,74,"P, Q, R","Auguste  Renoir"," RENOIR","Auguste ",22," RENOIR  Auguste ","E, F , I"]
[23,"Jules-Joseph  Lefebvre",1870,"La Vérité","Musée d'Orsay - Paris",1875,"Chloé","Hôtel Young and Jackson - Melbourne",1882,"Ondine","Musée Beaux-Arts - Budapest","Art académique","   ",1,20,265,112,260,139,151,93,"K, L, M","Jules-Joseph  Lefebvre"," LEFEBVRE","Jules-Joseph ",23," LEFEBVRE  Jules-Joseph ","Art  ?"]
[24,"Vincent  van Gogh",1887,"Nu de dos féminin","Collection privée",1887,"Femme nue étendue sur un lit","Fondation Barnes - Philadelphy",1887,"Femme nue allongée","Musée Kröller-Müller - Otterlo ","Postimpressionnisme","Expressionnisme",13,7,38,61,60,74,24,41,"T, V, W","Vincent  van Gogh"," VAN GOGH","Vincent ",24," VAN GOGH  Vincent ","M, N, P"]
[25,"Paul  Cezanne",1894,"Les Grandes baigneuses","Museum of Art - Philadelphia",1876,"Trois Baigneuses","Petit Palais - Paris",1877,"La Tentation de Saint Antoine","Musée d'Orsay - Paris","Postimpressionnisme","Impressionnisme",13,9,211,251,55,52,47,56,"A, B, C","Paul  Cezanne"," CEZANNE","Paul ",25," CEZANNE  Paul ","M, N, P"]
[26,"Edvard  Munch",1894,"Madonna ","Musée Munch, Oslo,",1907,"La Mort de Marat I","Musée Munch - Oslo",1902,"Jeune fille sur un drap rouge","Staatsgalerie - Stuttgart","Expressionnisme","Symbolisme",7,20,91,70,150,199,80,54,"K, L, M","Edvard  Munch"," MUNCH","Edvard ",26," MUNCH  Edvard ","E, F , I"]
[27,"Henri  Toulouse-Laurec",1896,"La Toilette","Musée d'Orsay - Paris",1897,"Femme rousse nue accroupie","Museum of Art - San Diego",1897,"Femme debout devant un miroir","The Met - New York","Art nouveau","Postimpressionnisme",4,13,67,54,46,60,63,47,"T, V, W","Henri  Toulouse-Laurec"," TOULOUSE-LAUREC","Henri ",27," TOULOUSE-LAUREC  Henri ","Art  ?"]
[28,"Karoly  Lotz",1901,"Fille après le bain","Magyargaleria - Budapest",1890,"Bacchante dormant I","Magyargaleria - Budapest",1919,"Bacchante dormant II","Magyargaleria - Budapest","Art académique","Romantisme",1,18,180,70,31,54,50,40,"K, L, M","Karoly  Lotz"," LOTZ","Karoly ",28," LOTZ  Karoly ","Art  ?"]
[29,"Anders  Zorn",1905,"Modèle dans le sauna","Finnish National Gallery, Helsinki",1917,"Dans la  Barque de Werner","Collection privée",1890,"Dans la chambre","Collecion privée","Impressionnisme","Art académique",9,1,100,80,60,45,33,50,"U, V, Z","Anders  Zorn"," ZORN","Anders ",29," ZORN  Anders ","E, F , I",null,null,null,null,null,null,null,null,null,null,{"$f":"VLOOKUP(AK31,Data!A3:B42,2)","v":{"$error":"#N/A"}}]
[30,"Pablo  Picasso",1906,"Les Demoiselles d'Avignon","MoMA",1956,"Femmes à la toilette","Grand-Palais - Paris",1964,"Nu couché à la fleur","Collection privée","Cubisme","Surréalisme",6,19,244,234,196,130,113,193,"P, Q, R",{"$f":"B32","v":"Pablo  Picasso"}," PICASSO","Pablo ",30," PICASSO  Pablo ","B, C, E"]
[31,"Gustav  Klimt ",1907,"Danae ","Galerie Wurthle",1917,"Adam et Ève","Gelerie Belvedere - Vienne",1907,"Serpent d'eau II","Collection privée","Art nouveau","Symbolisme",4,20,77,83,173,60,80,145,"K, L, M","Gustav  Klimt "," KLIMT ","Gustav ",31," KLIMT   Gustav ","Art  ?"]
[32,"Henri  Matisse",1907,"Nu bleu (Souvenir de Biskra)","Musée d'art de Baltimore",1935,"Nu Rose","Museum ef Art - Baltimore",1908,"Baigneuses avec une tortue","City Art Museum - St. Louis","Fauvisme","Postimpressionnisme",8,13,92,140,66,92,179,220,"K, L, M","Henri  Matisse"," MATISSE","Henri ",32," MATISSE  Henri ","E, F , I"]
[33,"Henri  Rousseau",1910,"Le rêve","MoMA",1905,"Ève et le Serpent","Kunsthalle - Hambourg",1909,"Le Charme","Museum Charlotte Zander - Bönnigheim","Postimpressionnisme","Art moderne",13,3,204,298,61,45,141,111,"P, Q, R","Henri  Rousseau"," ROUSSEAU","Henri ",33," ROUSSEAU  Henri ","M, N, P"]
[34,"Félix  Vallotton ",1913,"La Blanche et la Noire","Villa Flora, Winterthour (Suisse)",1911,"Femme nue avec un bras relevé","Collection privée",1907,"Baigneuse de face","Villa Flora - Winterthur","Art nouveau","Postimpressionnisme",4,13,114,147,100,81,81,65,"T, V, W","Félix  Vallotton "," VALLOTTON ","Félix ",34," VALLOTTON   Félix ","Art  ?"]
[35,"Amedeo  Modigliani",1917,"Nu couché","Hermitage",1916,"Nu sur un divan (Almaïs)","Collection Paul Wurzburger - Cleveland",1912,"Nu assis","Courtauld Gallery - Londres","Fauvisme","Expressionnisme",8,7,66,87,81,116,92,60,"K, L, M","Amedeo  Modigliani"," MODIGLIANI","Amedeo ",35," MODIGLIANI  Amedeo ","E, F , I"]
[36,"Alphonse  Mucha",1922,"nu, jeune fille ","Collection privée",1898,"Les 4 Arts - La Musique","Mucha Museum - Prague",1896,"L'Eté","Mucha Museum - Prague","Art nouveau","   ",4,20,40,60,100,50,105,55,"K, L, M","Alphonse  Mucha"," MUCHA","Alphonse ",36," MUCHA  Alphonse ","Art  ?"]
[37,"Otto  Mueller",1926,"Deux baigneuses","Das Brücke Museum, Berlin",1923,"Trois nus dans le paysage","Das Brücke Museum, Berlin",1925,"Deux Jeunes Filles","Staatliche Museen, Berlin","Expressionnisme","   ",7,20,100,149,30,89,25,41,"K, L, M","Otto  Mueller"," MUELLER","Otto ",37," MUELLER  Otto ","E, F , I"]
[38,"Balthasar  Balthus",1983,"Nu sur  guitare","Collection privée",1979,"Le Chat au Miroir","Collection privée",1948,"La Chambre","Smithsonian Institution - Washington","Art figuratif","Expressionnisme",2,7,64,51,65,81,190,160,"A, B, C","Balthasar  Balthus"," BALTHUS","Balthasar ",38," BALTHUS  Balthasar ","Art  ?"]
[39,"Tom  Wessellmann",1967,"Great American Nude","Collection privée",1977,"Carol Nude","Collection privée - New York",1980,"Nu avec lampe","Almine Rech Gallery - Londres","Pop Art","Art moderne",12,3,122,168,263,334,199,222,"T, V, W","Tom  Wessellmann"," WESSELLMANN","Tom ",39," WESSELLMANN  Tom ","M, N, P"]
[40,"Léonor  Fini",1975,"Couronnement Bienheureuse Féline","Collection privée",1972,"Les Baigneuses","Weinstein Gallery - San Fransisco",1975,"Nu couché","Edward James Foundation - Londres","Surréalisme","   ",19,20,116,81,73,118,35,25,"D, E, F","Léonor  Fini"," FINI","Léonor ",40," FINI  Léonor ","R, S, T"]
[41]
[42,null,null,null,null,null,null,null,null,null,null,null,null,null,null,null,null,null,null,null,null,null,0]
[43,null,null,null,null,null,null,null,null,null,null,null,null,null,null,"hauteur","largeur","hauteur","largeur","hauteur","largeur"]
[44]
[45,"   ","   ","   ","   ","   ","   ","   ","   ","   ","   ","   ","   ","   ","   ","   ","   ","   ","   ","   ","   ","   ","\" = B3 \"","Concanétation"]
[null,"alpha - Tableau manuel",null,"Correspondance liste Musée et liste Menu déroulant",null,null,null,null,null,null,null,null,null,"Partie manuelle",null,null,null,null,null,null,null,null,"Zone automatique"]
[null,null,null,null,null,null,null,null,"Liste mouv"]
[0,"   ","   ","   ","   ","   ","   ",null,0,null,0]
[1,38,{"$f":"\"     B     \"","v":"     B     "},{"$f":"C51&G51","v":"     B      BALTHUS  Balthasar "},null,38," BALTHUS  Balthasar ",null,1,"Art académique",1,"Art  ?"]
[2,8,{"$f":"\"            \"","v":"            "},{"$f":"C52&G52","v":"             BOUCHER  François "},null,8," BOUCHER  François ",null,2,"Art figuratif",2,"Art  ?",null,null,null,null,null,null,null,null,null,null,null,null,null,1,"DE  VINCI  Leonard "]
[3,20,{"$f":"\"            \"","v":"            "},"             BOUGUEREAU  William-Adolphe ",null,20," BOUGUEREAU  William-Adolphe ",null,3,"Art moderne",3,"Art  ?",null,null,null,null,null,null,null,null,null,null,null,null,null,2," CORRÈGE  Le "]
[4,15,{"$f":"\"     C    \"","v":"     C    "},"     C     CABANEL  Alexandre ",null,15," CABANEL  Alexandre ",null,4,"Art nouveau",4,"Art  ?",null,null,null,null,null,null,null,null,null,null,null,null,null,3," TITIEN  Le "]
[5,25,{"$f":"\"            \"","v":"            "},"             CEZANNE  Paul ","  ",25," CEZANNE  Paul ",null,5,"Baroque",5,"B, C, E",null,null,null,null,null,null,null,null,null,null,null,null,null,4," TINTORET  Le "]
[6,17,{"$f":"\"            \"","v":"            "},"             COROT  Jean-Baptiste-Camille ",null,17," COROT  Jean-Baptiste-Camille ",null,6,"Cubisme",6,"B, C, E",null,null,null,null,null,null,null,null,null,null,null,null,null,5," RUBENS  Pierre_Paul "]
[7,2,"            ","             CORRÈGE  Le ",null,2," CORRÈGE  Le ",null,7,"Expressionnisme",7,"E, F , I",null,null,null,null,null,null,null,null,null,null,null,null,null,6," POUSSIN  Nicolas "]
[8,18,"            ","             COURBET  Gustave ",null,18," COURBET  Gustave ",null,8,"Fauvisme",8,"E, F , I",null,null,null,null,null,null,null,null,null,null,null,null,null,7," VÉLASQUEZ  Diego "]
[9,12,{"$f":"\"     D    \"","v":"     D    "},"     D     DAVID  Jacques-Louis ",null,12," DAVID  Jacques-Louis ",null,9,"Impressionnisme",9,"E, F , I",null,null,null,null,null,null,null,null,null,null,null,null,null,8," BOUCHER  François "]
[10,21,{"$f":"\"            \"","v":"            "},"             DEGAS  Edgard ",null,21," DEGAS  Edgard ",null,10,"Maniérisme",10,"M, N, P",null,null,null,null,null,null,null,null,null,null,null,null,null,9," FRAGONARD  Jean-Honoré "]
[11,40,{"$f":"\"     F     \"","v":"     F     "},"     F      FINI  Léonor ",null,40," FINI  Léonor ",null,11,"Néo-classicisme",11,"M, N, P",null,null,null,null,null,null,null,null,null,null,null,null,null,10," GOYA  Francisco "]
[12,9,{"$f":"\"            \"","v":"            "},"             FRAGONARD  Jean-Honoré ",null,9," FRAGONARD  Jean-Honoré ",null,12,"Pop Art",12,"M, N, P",null,null,null,null,null,null,null,null,null,null,null,null,null,11," INGRES  Jean-Auguste-Dominique "]
[13,14,{"$f":"\"     G    \"","v":"     G    "},"     G     GÉRÔME  Jean-Léon ",null,14," GÉRÔME  Jean-Léon ",null,13,"Postimpressionnisme",13,"M, N, P",null,null,null,null,null,null,null,null,null,null,null,null,null,12," DAVID  Jacques-Louis "]
[14,19,{"$f":"\"            \"","v":"            "},"             GERVEX  Henri ",null,19," GERVEX  Henri ",null,14,"Préromantisme",14,"M, N, P",null,null,null,null,null,null,null,null,null,null,null,null,null,13," HAYEZ  Francesco "]
[15,10,{"$f":"\"            \"","v":"            "},"             GOYA  Francisco ",null,10," GOYA  Francisco ",null,15,"Réalisme",15,"R, S, T",null,null,null,null,null,null,null,null,null,null,null,null,null,14," GÉRÔME  Jean-Léon "]
[16,13,{"$f":"\"     H    \"","v":"     H    "},"     H     HAYEZ  Francesco ",null,13," HAYEZ  Francesco ",null,16,"Renaissance",16,"R, S, T",null,null,null,null,null,null,null,null,null,null,null,null,null,15," CABANEL  Alexandre "]
[17,11,{"$f":"\"      I     \"","v":"      I     "},"      I      INGRES  Jean-Auguste-Dominique ",null,11," INGRES  Jean-Auguste-Dominique ",null,17,"Rococo",17,"R, S, T",null,null,null,null,null,null,null,null,null,null,null,null,null,16," MANET  Edouard "]
[18,31,{"$f":"\"     K     \"","v":"     K     "},"     K      KLIMT   Gustav ",null,31," KLIMT   Gustav ",null,18,"Romantisme",18,"R, S, T",null,null,null,null,null,null,null,null,null,null,null,null,null,17," COROT  Jean-Baptiste-Camille "]
[19,23,{"$f":"\"     L     \"","v":"     L     "},"     L      LEFEBVRE  Jules-Joseph ",null,23," LEFEBVRE  Jules-Joseph ",null,19,"Surréalisme",19,"R, S, T",null,null,null,null,null,null,null,null,null,null,null,null,null,18," COURBET  Gustave "]
[20,28,{"$f":"\"            \"","v":"            "},"             LOTZ  Karoly ",null,28," LOTZ  Karoly ",null,20,"Symbolisme",20,"R, S, T",null,null,null,null,null,null,null,null,null,null,null,null,null,19," GERVEX  Henri "]
[21,16,{"$f":"\"     M    \"","v":"     M    "},"     M     MANET  Edouard ",null,16," MANET  Edouard ",null,21,null,21,null,null,null,null,null,null,null,null,null,null,null,null,null,null,20," BOUGUEREAU  William-Adolphe "]
[22,32,{"$f":"\"            \"","v":"            "},"             MATISSE  Henri ",null,32," MATISSE  Henri ",null,null,null,null,null,null,null,null,null,null,null,null,null,null,null,null,null,null,21," DEGAS  Edgard "]
[23,35,{"$f":"\"            \"","v":"            "},"             MODIGLIANI  Amedeo ",null,35," MODIGLIANI  Amedeo ",null,null,null,null,null,null,null,null,null,null,null,null,null,null,null,null,null,null,22," RENOIR  Auguste "]
[24,36,{"$f":"\"            \"","v":"            "},"             MUCHA  Alphonse ",null,36," MUCHA  Alphonse ",null,null,null,null,null,null,null,null,null,null,null,null,null,null,null,null,null,null,23," LEFEBVRE  Jules-Joseph "]
[25,37,{"$f":"\"            \"","v":"            "},"             MUELLER  Otto ",null,37," MUELLER  Otto ",null,null,null,null,null,null,null,null,null,null,null,null,null,null,null,null,null,null,24," VAN GOGH  Vincent "]
[26,26,"            ","             MUNCH  Edvard ",null,26," MUNCH  Edvard ",null,{"$f":"\"     A    \"","v":"     A    "},{"$f":"I76&J51","v":"     A    Art académique"},null,null,null,null,null,null,null,null,null,null,null,null,null,null,null,25," CEZANNE  Paul "]
[27,30,{"$f":"\"     P     \"","v":"     P     "},"     P      PICASSO  Pablo ",null,30," PICASSO  Pablo ",null,{"$f":"\"            \"","v":"            "},{"$f":"I77&J52","v":"            Art figuratif"},null,null,null,null,null,null,null,null,null,null,null,null,null,null,null,26," MUNCH  Edvard "]
[28,6,{"$f":"\"            \"","v":"            "},"             POUSSIN  Nicolas ",null,6," POUSSIN  Nicolas ",null,{"$f":"\"            \"","v":"            "},"            Art moderne",null,null,null,null,null,null,null,null,null,null,null,null,null,null,null,27," TOULOUSE-LAUREC  Henri "]
[29,22,{"$f":"\"     R     \"","v":"     R     "},"     R      RENOIR  Auguste ",null,22," RENOIR  Auguste ",null,{"$f":"\"            \"","v":"            "},"            Art nouveau",null,null,null,null,null,null,null,null,null,null,null,null,null,null,null,28," LOTZ  Karoly "]
[30,33,{"$f":"\"            \"","v":"            "},"             ROUSSEAU  Henri ",null,33," ROUSSEAU  Henri ",null,{"$f":"\"     B     \"","v":"     B     "},"     B     Baroque",null,null,null,null,null,null,null,null,null,null,null,null,null,null,null,29," ZORN  Anders "]
[31,5,{"$f":"\"            \"","v":"            "},"             RUBENS  Pierre_Paul ",null,5," RUBENS  Pierre_Paul ",null,{"$f":"\"     C     \"","v":"     C     "},"     C     Cubisme",null,null,null,null,null,null,null,null,null,null,null,null,null,null,null,30," PICASSO  Pablo "]
[32,4,{"$f":"\"     T     \"","v":"     T     "},"     T      TINTORET  Le ",null,4," TINTORET  Le ",null,{"$f":"\"     E     \"","v":"     E     "},"     E     Expressionnisme",null,null,null,null,null,null,null,null,null,null,null,null,null,null,null,31," KLIMT   Gustav "]
[33,3,{"$f":"\"            \"","v":"            "},"             TITIEN  Le ",null,3," TITIEN  Le ",null,{"$f":"\"     F     \"","v":"     F     "},"     F     Fauvisme",null,null,null,null,null,null,null,null,null,null,null,null,null,null,null,32," MATISSE  Henri "]
[34,27,{"$f":"\"            \"","v":"            "},"             TOULOUSE-LAUREC  Henri ",null,27," TOULOUSE-LAUREC  Henri ",null,{"$f":"\"     I      \"","v":"     I      "},"     I      Impressionnisme",null,null,null,null,null,null,null,null,null,null,null,null,null,null,null,33," ROUSSEAU  Henri "]
[35,34,{"$f":"\"     V    \"","v":"     V    "},"     V     VALLOTTON   Félix ",null,34," VALLOTTON   Félix ",null,{"$f":"\"     M    \"","v":"     M    "},"     M    Maniérisme",null,null,null,null,null,null,null,null,null,null,null,null,null,null,null,34," VALLOTTON   Félix "]
[36,24,{"$f":"\"            \"","v":"            "},"             VAN GOGH  Vincent ",null,24," VAN GOGH  Vincent ",null,{"$f":"\"     N     \"","v":"     N     "},"     N     Néo-classicisme",null,null,null,null,null,null,null,null,null,null,null,null,null,null,null,35," MODIGLIANI  Amedeo "]
[37,7,{"$f":"\"            \"","v":"            "},"             VÉLASQUEZ  Diego ",null,7," VÉLASQUEZ  Diego ",null,{"$f":"\"     P     \"","v":"     P     "},"     P     Pop Art",null,null,null,null,null,null,null,null,null,null,null,null,null,null,null,36," MUCHA  Alphonse "]
[38,1,{"$f":"\"            \"","v":"            "},"             de VINCI  Leonard ",null,1," de VINCI  Leonard ",null,{"$f":"\"            \"","v":"            "},"            Postimpressionnisme",null,null,null,null,null,null,null,null,null,null,null,null,null,null,null,37," MUELLER  Otto "]
[39,39,{"$f":"\"     W   \"","v":"     W   "},"     W    WESSELLMANN  Tom ",null,39," WESSELLMANN  Tom ",null,"            ","            Préromantisme",null,null,null,null,null,null,null,null,null,null,null,null,null,null,null,38," BALTHUS  Balthasar "]
[40,29,{"$f":"\"     Z   \"","v":"     Z   "},"     Z    ZORN  Anders ",null,29," ZORN  Anders ",null,{"$f":"\"     R     \"","v":"     R     "},"     R     Réalisme",null,null,null,null,null,null,null,null,null,null,null,null,null,null,null,39," WESSELLMANN  Tom "]
[41,"  ",null,{"$f":"C91&G91","v":""},null,null,null,null,"            ","            Renaissance",null,null,null,null,null,null,null,null,null,null,null,null,null,null,null,40," FINI  Léonor "]
[42,"  ",null,null,null,null,null,null,"            ","            Rococo"]
[null,null,null,null,null,null,null,null,{"$f":"\"     S     \"","v":"     S     "},"     S     Romantisme"]
[null,null,null,null,null,null,null,null,"            ","            Surréalisme"]
[null,null,null,null,null,null,null,null,{"$f":"\"            \"","v":"            "},"            Symbolisme"]
[null,null,null,null,null,null,null,null,null,""]
[null,null,null,null,null,null,null,null,{"$f":"\"            \"","v":"            "}]